DepartmentFamily,Entity,Date,ExpenseType,ExpenseArea,Supplier,TransactionNumber,Amount,VATRegistrationNo,
BEIS,The Insolvency Service,03/01/2017,Agency Workers,PROJECTS                                                                                            ,CAPITA BUSINESS SERVICES LTD,BA0000301923,"6,968.36",618184140,
BEIS,The Insolvency Service,03/01/2017,Agency Workers,INFORMATION TECHNOLOGY                                                                              ,CAPITA BUSINESS SERVICES LTD,BA0000301924,"1,369.48",618184140,
BEIS,The Insolvency Service,03/01/2017,Accommodation,ESTATES,CBRE LIMITED,BA0000301899,"164,880.00",,
BEIS,The Insolvency Service,03/01/2017,Accommodation,ESTATES,CBRE LIMITED,BA0000301900,"164,512.50",,
BEIS,The Insolvency Service,03/01/2017,Accommodation,ESTATES,CBRE LIMITED,BA0000301899,"18,671.18",,
BEIS,The Insolvency Service,03/01/2017,Accommodation,ESTATES,CBRE LIMITED,BA0000301900,"18,641.91",,
BEIS,The Insolvency Service,03/01/2017,Insolvency Case Related Costs,OFFICIAL RECEIVER SERVICES                                                                          ,HMCTS,BA0000301913,280.00,,
BEIS,The Insolvency Service,03/01/2017,Accommodation,BUSINESS SERVICES DIRECTORATE                                                                       ,IRON MOUNTAIN (UK) LTD,BA0000301921,0.25,607937516,
BEIS,The Insolvency Service,03/01/2017,Accommodation,BUSINESS SERVICES DIRECTORATE                                                                       ,IRON MOUNTAIN (UK) LTD,BA0000301921,"1,726.64",607937516,
BEIS,The Insolvency Service,03/01/2017,Accommodation,EXTERNAL AFFAIRS                                                                                    ,IRON MOUNTAIN (UK) LTD,BA0000301921,195.04,607937516,
BEIS,The Insolvency Service,03/01/2017,Accommodation,INFORMATION TECHNOLOGY                                                                              ,IRON MOUNTAIN (UK) LTD,BA0000301921,343.87,607937516,
BEIS,The Insolvency Service,03/01/2017,Accommodation,INVESTIGATIONS & ENFORCEMENT                                                                        ,IRON MOUNTAIN (UK) LTD,BA0000301921,"2,552.76",607937516,
BEIS,The Insolvency Service,03/01/2017,Accommodation,OFFICIAL RECEIVER SERVICES                                                                          ,IRON MOUNTAIN (UK) LTD,BA0000301921,"18,577.81",607937516,
BEIS,The Insolvency Service,03/01/2017,Accommodation,PEOPLE & CAPABILITY                                                                                 ,IRON MOUNTAIN (UK) LTD,BA0000301921,141.99,607937516,
BEIS,The Insolvency Service,03/01/2017,Insolvency Case Related Costs,OFFICIAL RECEIVER SERVICES                                                                          ,REGISTRAR OF COMPANIES,BA0000301914,300.00,,
BEIS,The Insolvency Service,03/01/2017,Travel and Subsistence,INFORMATION TECHNOLOGY                                                                              ,Staff Payment,BA0000301920,85.00,,
BEIS,The Insolvency Service,03/01/2017,Travel and Subsistence,CUSTOMER AND COMMUNICATIONS                                                                         ,Staff Payment,BA0000301920,40.02,,
BEIS,The Insolvency Service,03/01/2017,Travel and Subsistence,CUSTOMER AND COMMUNICATIONS                                                                         ,Staff Payment,BA0000301920,127.80,,
BEIS,The Insolvency Service,03/01/2017,Travel and Subsistence,FINANCE AND COMMERCIAL                                                                              ,Staff Payment,BA0000301920,23.60,,
BEIS,The Insolvency Service,03/01/2017,Travel and Subsistence,FINANCE AND COMMERCIAL                                                                              ,Staff Payment,BA0000301920,24.30,,
BEIS,The Insolvency Service,03/01/2017,Travel and Subsistence,CUSTOMER AND COMMUNICATIONS                                                                         ,Staff Payment,BA0000301920,5.00,,
BEIS,The Insolvency Service,03/01/2017,Travel and Subsistence,BUSINESS SERVICES DIRECTORATE                                                                       ,Staff Payment,BA0000301920,5.95,,
BEIS,The Insolvency Service,03/01/2017,Travel and Subsistence,BUSINESS SERVICES DIRECTORATE                                                                       ,Staff Payment,BA0000301920,91.00,,
BEIS,The Insolvency Service,03/01/2017,Travel and Subsistence,BUSINESS SERVICES DIRECTORATE                                                                       ,Staff Payment,BA0000301920,12.00,,
BEIS,The Insolvency Service,03/01/2017,Travel and Subsistence,OFFICIAL RECEIVER SERVICES                                                                          ,Staff Payment,BA0000301920,3.80,,
BEIS,The Insolvency Service,03/01/2017,Travel and Subsistence,OFFICIAL RECEIVER SERVICES                                                                          ,Staff Payment,BA0000301920,25.20,,
BEIS,The Insolvency Service,03/01/2017,Travel and Subsistence,OFFICIAL RECEIVER SERVICES                                                                          ,Staff Payment,BA0000301920,7.65,,
BEIS,The Insolvency Service,03/01/2017,Travel and Subsistence,OFFICIAL RECEIVER SERVICES                                                                          ,Staff Payment,BA0000301920,7.20,,
BEIS,The Insolvency Service,03/01/2017,Travel and Subsistence,OFFICIAL RECEIVER SERVICES                                                                          ,Staff Payment,BA0000301920,2.00,,
BEIS,The Insolvency Service,03/01/2017,Travel and Subsistence,OFFICIAL RECEIVER SERVICES                                                                          ,Staff Payment,BA0000301920,14.40,,
BEIS,The Insolvency Service,03/01/2017,Travel and Subsistence,OFFICIAL RECEIVER SERVICES                                                                          ,Staff Payment,BA0000301920,3.15,,
BEIS,The Insolvency Service,03/01/2017,Travel and Subsistence,OFFICIAL RECEIVER SERVICES                                                                          ,Staff Payment,BA0000301920,6.00,,
BEIS,The Insolvency Service,03/01/2017,Travel and Subsistence,OFFICIAL RECEIVER SERVICES                                                                          ,Staff Payment,BA0000301920,3.00,,
BEIS,The Insolvency Service,03/01/2017,Travel and Subsistence,OFFICIAL RECEIVER SERVICES                                                                          ,Staff Payment,BA0000301920,103.50,,
BEIS,The Insolvency Service,03/01/2017,Travel and Subsistence,INVESTIGATIONS & ENFORCEMENT                                                                        ,Staff Payment,BA0000301920,25.00,,
BEIS,The Insolvency Service,03/01/2017,Travel and Subsistence,BUSINESS SERVICES DIRECTORATE                                                                       ,Staff Payment,BA0000301920,29.89,,
BEIS,The Insolvency Service,03/01/2017,Travel and Subsistence,OFFICIAL RECEIVER SERVICES                                                                          ,Staff Payment,BA0000301920,5.00,,
BEIS,The Insolvency Service,03/01/2017,Travel and Subsistence,OFFICIAL RECEIVER SERVICES                                                                          ,Staff Payment,BA0000301920,5.00,,
BEIS,The Insolvency Service,03/01/2017,Travel and Subsistence,OFFICIAL RECEIVER SERVICES                                                                          ,Staff Payment,BA0000301920,9.66,,
BEIS,The Insolvency Service,03/01/2017,Travel and Subsistence,OFFICIAL RECEIVER SERVICES                                                                          ,Staff Payment,BA0000301920,4.50,,
BEIS,The Insolvency Service,03/01/2017,Employee Related Costs,PEOPLE & CAPABILITY                                                                                 ,Staff Payment,BA0000301920,231.00,,
BEIS,The Insolvency Service,03/01/2017,Postage,FINANCE AND COMMERCIAL                                                                              ,TNT UK LTD,BA0000301910,21.64,354715057,
BEIS,The Insolvency Service,03/01/2017,Office Supplies and Services,FINANCE AND COMMERCIAL                                                                              ,WILLIAMS LEA LTD,BA0000301908,554.40,662774703,
BEIS,The Insolvency Service,03/01/2017,Office Supplies and Services,FINANCE AND COMMERCIAL                                                                              ,WILLIAMS LEA LTD,BA0000301909,-554.40,662774703,
BEIS,The Insolvency Service,04/01/2017,Computer and IT Systems,INFORMATION TECHNOLOGY                                                                              ,ATOS IT SERVICES UK LTD,BA0000301926,"16,950.36",,
BEIS,The Insolvency Service,04/01/2017,Computer and IT Systems,INFORMATION TECHNOLOGY                                                                              ,ATOS IT SERVICES UK LTD,BA0000301936,"10,980.92",,
BEIS,The Insolvency Service,04/01/2017,Accommodation,ESTATES,BIS - DEPT. FOR BUSINESS INNOVATION & SKILLS,BA0000301927,"64,969.69",888825550,
BEIS,The Insolvency Service,04/01/2017,Investigation and Enforcement Costs,CUSTOMER AND COMMUNICATIONS                                                                         ,GOVDELIVERY INC                                             ,BA0000301941,763.20,,
BEIS,The Insolvency Service,04/01/2017,Agency Workers,INFORMATION TECHNOLOGY                                                                              ,JUMAR SOLUTIONS LTD                                         ,BA0000301942,"5,148.00",,
BEIS,The Insolvency Service,04/01/2017,Investigation and Enforcement Costs,INVESTIGATIONS & ENFORCEMENT                                                                        ,MD5 LTD                                                     ,BA0000301959,"16,600.00",,
BEIS,The Insolvency Service,04/01/2017,Postage,BUSINESS SERVICES DIRECTORATE                                                                       ,NEOPOST LTD - FRANKING TOP UPS,BA0000301928,200.00,,
BEIS,The Insolvency Service,04/01/2017,Postage,OFFICIAL RECEIVER SERVICES                                                                          ,NEOPOST LTD - FRANKING TOP UPS,BA0000301928,500.00,,
BEIS,The Insolvency Service,04/01/2017,Postage,OFFICIAL RECEIVER SERVICES                                                                          ,NEOPOST LTD - FRANKING TOP UPS,BA0000301928,"1,000.00",,
BEIS,The Insolvency Service,04/01/2017,Postage,OFFICIAL RECEIVER SERVICES                                                                          ,NEOPOST LTD - FRANKING TOP UPS,BA0000301928,"1,000.00",,
BEIS,The Insolvency Service,04/01/2017,Employee Related Costs,BUSINESS SERVICES DIRECTORATE                                                                       ,POSTURITE (UK) LTD.,BA0000301935,611.10,,
BEIS,The Insolvency Service,04/01/2017,Employee Related Costs,P&C - People Relations                                                                              ,RIGHT CORECARE Ltd                                          ,BA0000301948,485.78,,
BEIS,The Insolvency Service,04/01/2017,Insolvency Case Related Costs,OFFICIAL RECEIVER SERVICES                                                                          ,THE STATIONERY OFFICE LTD,BA0000301937,69.90,662774703,
BEIS,The Insolvency Service,04/01/2017,Insolvency Case Related Costs,OFFICIAL RECEIVER SERVICES                                                                          ,THE STATIONERY OFFICE LTD,BA0000301938,139.80,662774703,
BEIS,The Insolvency Service,04/01/2017,Insolvency Case Related Costs,OFFICIAL RECEIVER SERVICES                                                                          ,THE STATIONERY OFFICE LTD,BA0000301939,69.90,662774703,
BEIS,The Insolvency Service,04/01/2017,Insolvency Case Related Costs,OFFICIAL RECEIVER SERVICES                                                                          ,THE STATIONERY OFFICE LTD,BA0000301940,279.60,662774703,
BEIS,The Insolvency Service,05/01/2017,Agency Workers,P&C - People Relations                                                                              ,BADENOCH & CLARK,BA0000301953,673.49,232347975,
BEIS,The Insolvency Service,05/01/2017,Agency Workers,P&C - People Relations                                                                              ,BADENOCH & CLARK,BA0000301954,336.74,232347975,
BEIS,The Insolvency Service,05/01/2017,Office Supplies and Services,FINANCE AND COMMERCIAL                                                                              ,BIS - DEPT. FOR BUSINESS INNOVATION & SKILLS,BA0000301990,"1,794.85",888825550,
BEIS,The Insolvency Service,05/01/2017,Office Supplies and Services,FINANCE AND COMMERCIAL                                                                              ,BIS - DEPT. FOR BUSINESS INNOVATION & SKILLS,BA0000301991,"1,029.73",888825550,
BEIS,The Insolvency Service,05/01/2017,Office Supplies and Services,FINANCE AND COMMERCIAL                                                                              ,BIS - DEPT. FOR BUSINESS INNOVATION & SKILLS,BA0000301992,"3,405.98",888825550,
BEIS,The Insolvency Service,05/01/2017,Office Supplies and Services,FINANCE AND COMMERCIAL                                                                              ,BIS - DEPT. FOR BUSINESS INNOVATION & SKILLS,BA0000301993,"3,394.38",888825550,
BEIS,The Insolvency Service,05/01/2017,Office Supplies and Services,FINANCE AND COMMERCIAL                                                                              ,BIS - DEPT. FOR BUSINESS INNOVATION & SKILLS,BA0000301994,"2,935.12",888825550,
BEIS,The Insolvency Service,05/01/2017,Agency Workers,FINANCE AND COMMERCIAL,BROOK STREET (UK) LTD,BA0000301951,"20,573.65",,
BEIS,The Insolvency Service,05/01/2017,Agency Workers,FINANCE AND COMMERCIAL,BROOK STREET (UK) LTD,BA0000301995,"3,542.38",,
BEIS,The Insolvency Service,05/01/2017,Agency Workers,PROJECTS                                                                                            ,CAPITA BUSINESS SERVICES LTD,BA0000301955,"5,092.27",618184140,
BEIS,The Insolvency Service,05/01/2017,Training Costs,PEOPLE & CAPABILITY                                                                                 ,CAPITA BUSINESS SERVICES LTD,BA0000301980,487.80,618184140,
BEIS,The Insolvency Service,05/01/2017,Accommodation,ESTATES,COLLIERS INTERNATIONAL PROPERTY CONSULTANTS LTD             ,BA0000302040,"70,530.00",,
BEIS,The Insolvency Service,05/01/2017,Accommodation,ESTATES,COLLIERS INTERNATIONAL PROPERTY CONSULTANTS LTD             ,BA0000302040,"21,704.40",,
BEIS,The Insolvency Service,05/01/2017,Insolvency Case Related Costs,OFFICIAL RECEIVER SERVICES                                                                          ,COMPANIES HOUSE,BA0000301988,4.00,GD255,
BEIS,The Insolvency Service,05/01/2017,Insolvency Case Related Costs,OFFICIAL RECEIVER SERVICES                                                                          ,COMPANIES HOUSE,BA0000301989,4.00,GD255,
BEIS,The Insolvency Service,05/01/2017,Employee Related Costs,FINANCE AND COMMERCIAL,POSTURITE (UK) LTD.,BA0000301952,620.10,,
BEIS,The Insolvency Service,05/01/2017,Postage,OFFICIAL RECEIVER SERVICES                                                                          ,ROYAL MAIL GROUP LTD - RESPONSE SERVICES)                   ,BA0000301950,177.32,243170002,
BEIS,The Insolvency Service,05/01/2017,Travel and Subsistence,FINANCE AND COMMERCIAL,Staff Payment,BA0000301996,24.00,,
BEIS,The Insolvency Service,05/01/2017,Travel and Subsistence,FINANCE AND COMMERCIAL,Staff Payment,BA0000301996,7.00,,
BEIS,The Insolvency Service,05/01/2017,Travel and Subsistence,FINANCE AND COMMERCIAL,Staff Payment,BA0000301996,13.95,,
BEIS,The Insolvency Service,05/01/2017,Employee Related Costs,FINANCE AND COMMERCIAL                                                                              ,Staff Payment,BA0000301996,231.00,,
BEIS,The Insolvency Service,05/01/2017,Travel and Subsistence,OFFICIAL RECEIVER SERVICES                                                                          ,Staff Payment,BA0000301996,12.10,,
BEIS,The Insolvency Service,05/01/2017,Travel and Subsistence,INVESTIGATIONS & ENFORCEMENT                                                                        ,Staff Payment,BA0000301996,15.50,,
BEIS,The Insolvency Service,05/01/2017,Travel and Subsistence,INVESTIGATIONS & ENFORCEMENT                                                                        ,Staff Payment,BA0000301996,128.26,,
BEIS,The Insolvency Service,05/01/2017,Travel and Subsistence,OFFICIAL RECEIVER SERVICES                                                                          ,Staff Payment,BA0000301996,22.20,,
BEIS,The Insolvency Service,05/01/2017,Travel and Subsistence,OFFICIAL RECEIVER SERVICES                                                                          ,Staff Payment,BA0000301996,32.85,,
BEIS,The Insolvency Service,05/01/2017,Travel and Subsistence,OFFICIAL RECEIVER SERVICES                                                                          ,Staff Payment,BA0000301996,27.00,,
BEIS,The Insolvency Service,05/01/2017,Travel and Subsistence,OFFICIAL RECEIVER SERVICES                                                                          ,Staff Payment,BA0000301996,5.85,,
BEIS,The Insolvency Service,05/01/2017,Travel and Subsistence,OFFICIAL RECEIVER SERVICES                                                                          ,Staff Payment,BA0000301996,1.80,,
BEIS,The Insolvency Service,05/01/2017,Travel and Subsistence,OFFICIAL RECEIVER SERVICES                                                                          ,Staff Payment,BA0000301996,19.80,,
BEIS,The Insolvency Service,05/01/2017,Travel and Subsistence,BUSINESS SERVICES DIRECTORATE                                                                       ,Staff Payment,BA0000301996,10.00,,
BEIS,The Insolvency Service,05/01/2017,Travel and Subsistence,INVESTIGATIONS & ENFORCEMENT                                                                        ,Staff Payment,BA0000301996,31.23,,
BEIS,The Insolvency Service,05/01/2017,Travel and Subsistence,INVESTIGATIONS & ENFORCEMENT                                                                        ,Staff Payment,BA0000301996,44.90,,
BEIS,The Insolvency Service,05/01/2017,Travel and Subsistence,INVESTIGATIONS & ENFORCEMENT                                                                        ,Staff Payment,BA0000301996,4.84,,
BEIS,The Insolvency Service,05/01/2017,Travel and Subsistence,OFFICIAL RECEIVER SERVICES                                                                          ,Staff Payment,BA0000301996,19.45,,
BEIS,The Insolvency Service,05/01/2017,Travel and Subsistence,OFFICIAL RECEIVER SERVICES                                                                          ,Staff Payment,BA0000301996,8.79,,
BEIS,The Insolvency Service,05/01/2017,Travel and Subsistence,OFFICIAL RECEIVER SERVICES                                                                          ,Staff Payment,BA0000301996,5.00,,
BEIS,The Insolvency Service,05/01/2017,Insolvency Case Related Costs,INVESTIGATIONS & ENFORCEMENT                                                                        ,Staff Payment,BA0000301996,7.00,,
BEIS,The Insolvency Service,05/01/2017,Office Supplies and Services,OFFICIAL RECEIVER SERVICES                                                                          ,Staff Payment,BA0000301996,19.99,,
BEIS,The Insolvency Service,05/01/2017,Postage,OFFICIAL RECEIVER SERVICES                                                                          ,TNT UK LTD,BA0000301987,190.45,354715057,
BEIS,The Insolvency Service,05/01/2017,Computer and IT Systems,INFORMATION TECHNOLOGY                                                                              ,VODAFONE - CABLE & WIRELESS COMMUNICATIONS,BA0000301982,"12,205.57",232303710,
BEIS,The Insolvency Service,05/01/2017,Office Supplies and Services,FINANCE AND COMMERCIAL                                                                              ,WILLIAMS LEA LTD,BA0000301956,194.04,662774703,
BEIS,The Insolvency Service,05/01/2017,Office Supplies and Services,FINANCE AND COMMERCIAL                                                                              ,WILLIAMS LEA LTD,BA0000301986,554.40,662774703,
BEIS,The Insolvency Service,06/01/2017,Office Supplies and Services,FINANCE AND COMMERCIAL,BIS - DEPT. FOR BUSINESS INNOVATION & SKILLS,BA0000302041,"4,872.82",888825550,
BEIS,The Insolvency Service,06/01/2017,Office Supplies and Services,FINANCE AND COMMERCIAL                                                                              ,BIS - DEPT. FOR BUSINESS INNOVATION & SKILLS,BA0000302041,"8,744.60",888825550,
BEIS,The Insolvency Service,06/01/2017,Computer and IT Systems,INVESTIGATIONS & ENFORCEMENT                                                                        ,BT BUSINESS DIRECT LTD,BA0000302009,"3,566.40",,
BEIS,The Insolvency Service,06/01/2017,Computer and IT Systems,INVESTIGATIONS & ENFORCEMENT                                                                        ,BT BUSINESS DIRECT LTD,BA0000302010,20.37,,
BEIS,The Insolvency Service,06/01/2017,Computer and IT Systems,INVESTIGATIONS & ENFORCEMENT                                                                        ,BT BUSINESS DIRECT LTD,BA0000302012,606.38,,
BEIS,The Insolvency Service,06/01/2017,Insolvency Case Related Costs,OFFICIAL RECEIVER SERVICES                                                                          ,COMPANIES HOUSE,BA0000302038,4.00,GD255,
BEIS,The Insolvency Service,06/01/2017,Agency Workers,INFORMATION TECHNOLOGY                                                                              ,CONCEPT INFORMATION TECHNOLOGY LTD                          ,BA0000302032,"1,560.00",776147892,
BEIS,The Insolvency Service,06/01/2017,Agency Workers,INFORMATION TECHNOLOGY                                                                              ,CONCEPT INFORMATION TECHNOLOGY LTD                          ,BA0000302033,780.00,776147892,
BEIS,The Insolvency Service,06/01/2017,Computer and IT Systems,BUSINESS SERVICES DIRECTORATE                                                                       ,EXPERIAN QAS LTD,BA0000302007,"2,040.54",887133593,
BEIS,The Insolvency Service,06/01/2017,Computer and IT Systems,BUSINESS SERVICES DIRECTORATE                                                                       ,EXPERIAN QAS LTD,BA0000302008,"9,783.60",887133593,
BEIS,The Insolvency Service,06/01/2017,Investigation and Enforcement Costs,CUSTOMER AND COMMUNICATIONS                                                                         ,GORKANA GROUP LTD                                           ,BA0000302034,694.50,757158012,
BEIS,The Insolvency Service,06/01/2017,Insolvency Case Related Costs,OFFICIAL RECEIVER SERVICES                                                                          ,HPI LTD,BA0000302035,8.50,942407139,
BEIS,The Insolvency Service,06/01/2017,Insolvency Case Related Costs,OFFICIAL RECEIVER SERVICES                                                                          ,HPI LTD,BA0000302036,3.64,942407139,
BEIS,The Insolvency Service,06/01/2017,Insolvency Case Related Costs,OFFICIAL RECEIVER SERVICES                                                                          ,ROYAL MAIL (REDIRECTION)                                    ,BA0000302037,"15,400.00",,
BEIS,The Insolvency Service,06/01/2017,Postage,INFORMATION TECHNOLOGY                                                                              ,ROYAL MAIL GROUP LTD - RESPONSE SERVICES)                   ,BA0000302013,260.00,243170002,
BEIS,The Insolvency Service,06/01/2017,Postage,INFORMATION TECHNOLOGY                                                                              ,ROYAL MAIL GROUP LTD - RESPONSE SERVICES)                   ,BA0000302014,260.00,243170002,
BEIS,The Insolvency Service,06/01/2017,Postage,INFORMATION TECHNOLOGY                                                                              ,ROYAL MAIL GROUP LTD - RESPONSE SERVICES)                   ,BA0000302015,260.00,243170002,
BEIS,The Insolvency Service,06/01/2017,Postage,INFORMATION TECHNOLOGY                                                                              ,ROYAL MAIL GROUP LTD - RESPONSE SERVICES)                   ,BA0000302016,260.00,243170002,
BEIS,The Insolvency Service,06/01/2017,Postage,INFORMATION TECHNOLOGY                                                                              ,ROYAL MAIL GROUP LTD - RESPONSE SERVICES)                   ,BA0000302017,260.00,243170002,
BEIS,The Insolvency Service,06/01/2017,Postage,INFORMATION TECHNOLOGY                                                                              ,ROYAL MAIL GROUP LTD - RESPONSE SERVICES)                   ,BA0000302018,260.00,243170002,
BEIS,The Insolvency Service,06/01/2017,Postage,INFORMATION TECHNOLOGY                                                                              ,ROYAL MAIL GROUP LTD - RESPONSE SERVICES)                   ,BA0000302019,260.00,243170002,
BEIS,The Insolvency Service,06/01/2017,Postage,INFORMATION TECHNOLOGY                                                                              ,ROYAL MAIL GROUP LTD - RESPONSE SERVICES)                   ,BA0000302020,260.00,243170002,
BEIS,The Insolvency Service,06/01/2017,Postage,INFORMATION TECHNOLOGY                                                                              ,ROYAL MAIL GROUP LTD - RESPONSE SERVICES)                   ,BA0000302021,260.00,243170002,
BEIS,The Insolvency Service,06/01/2017,Postage,INFORMATION TECHNOLOGY                                                                              ,ROYAL MAIL GROUP LTD - RESPONSE SERVICES)                   ,BA0000302022,260.00,243170002,
BEIS,The Insolvency Service,06/01/2017,Postage,INFORMATION TECHNOLOGY                                                                              ,ROYAL MAIL GROUP LTD - RESPONSE SERVICES)                   ,BA0000302023,260.00,243170002,
BEIS,The Insolvency Service,06/01/2017,Postage,INFORMATION TECHNOLOGY                                                                              ,ROYAL MAIL GROUP LTD - RESPONSE SERVICES)                   ,BA0000302024,260.00,243170002,
BEIS,The Insolvency Service,06/01/2017,Postage,INFORMATION TECHNOLOGY                                                                              ,ROYAL MAIL GROUP LTD - RESPONSE SERVICES)                   ,BA0000302025,260.00,243170002,
BEIS,The Insolvency Service,06/01/2017,Postage,INFORMATION TECHNOLOGY                                                                              ,ROYAL MAIL GROUP LTD - RESPONSE SERVICES)                   ,BA0000302026,260.00,243170002,
BEIS,The Insolvency Service,06/01/2017,Postage,INFORMATION TECHNOLOGY                                                                              ,ROYAL MAIL GROUP LTD - RESPONSE SERVICES)                   ,BA0000302027,260.00,243170002,
BEIS,The Insolvency Service,06/01/2017,Postage,INFORMATION TECHNOLOGY                                                                              ,ROYAL MAIL GROUP LTD - RESPONSE SERVICES)                   ,BA0000302028,260.00,243170002,
BEIS,The Insolvency Service,06/01/2017,Postage,INFORMATION TECHNOLOGY                                                                              ,ROYAL MAIL GROUP LTD - RESPONSE SERVICES)                   ,BA0000302029,260.00,243170002,
BEIS,The Insolvency Service,06/01/2017,Postage,INFORMATION TECHNOLOGY                                                                              ,ROYAL MAIL GROUP LTD - RESPONSE SERVICES)                   ,BA0000302030,260.00,243170002,
BEIS,The Insolvency Service,06/01/2017,Postage,INFORMATION TECHNOLOGY                                                                              ,ROYAL MAIL GROUP LTD - RESPONSE SERVICES)                   ,BA0000302031,260.00,243170002,
BEIS,The Insolvency Service,06/01/2017,Accommodation,ESTATES,SENATOR INTERNATIONAL LTD,BA0000302004,"5,969.38",291146560,
BEIS,The Insolvency Service,06/01/2017,Computer and IT Systems,INFORMATION TECHNOLOGY                                                                              ,TAS SOFTWARE,BA0000302039,764.40,,
BEIS,The Insolvency Service,09/01/2017,Telecoms,BUSINESS SERVICES DIRECTORATE                                                                       ,BT CONFERENCING SERVICES,BA0000302063,0.04,245719348,
BEIS,The Insolvency Service,09/01/2017,Telecoms,BUSINESS SERVICES DIRECTORATE                                                                       ,BT CONFERENCING SERVICES,BA0000302063,7.49,245719348,
BEIS,The Insolvency Service,09/01/2017,Telecoms,CHIEF EXECUTIVE DIVISION                                                                            ,BT CONFERENCING SERVICES,BA0000302063,7.68,245719348,
BEIS,The Insolvency Service,09/01/2017,Telecoms,CUSTOMER AND COMMUNICATIONS                                                                         ,BT CONFERENCING SERVICES,BA0000302063,7.78,245719348,
BEIS,The Insolvency Service,09/01/2017,Telecoms,CUSTOMER AND COMMUNICATIONS                                                                         ,BT CONFERENCING SERVICES,BA0000302063,23.33,245719348,
BEIS,The Insolvency Service,09/01/2017,Telecoms,ESTATES,BT CONFERENCING SERVICES,BA0000302063,30.60,245719348,
BEIS,The Insolvency Service,09/01/2017,Telecoms,EXTERNAL AFFAIRS                                                                                    ,BT CONFERENCING SERVICES,BA0000302063,5.95,245719348,
BEIS,The Insolvency Service,09/01/2017,Telecoms,EXTERNAL AFFAIRS                                                                                    ,BT CONFERENCING SERVICES,BA0000302063,11.20,245719348,
BEIS,The Insolvency Service,09/01/2017,Telecoms,FINANCE AND COMMERCIAL,BT CONFERENCING SERVICES,BA0000302063,2.56,245719348,
BEIS,The Insolvency Service,09/01/2017,Telecoms,FINANCE AND COMMERCIAL                                                                              ,BT CONFERENCING SERVICES,BA0000302063,4.90,245719348,
BEIS,The Insolvency Service,09/01/2017,Telecoms,FINANCE AND COMMERCIAL                                                                              ,BT CONFERENCING SERVICES,BA0000302063,8.17,245719348,
BEIS,The Insolvency Service,09/01/2017,Telecoms,FINANCE AND COMMERCIAL                                                                              ,BT CONFERENCING SERVICES,BA0000302063,20.20,245719348,
BEIS,The Insolvency Service,09/01/2017,Telecoms,FINANCE AND COMMERCIAL                                                                              ,BT CONFERENCING SERVICES,BA0000302063,22.45,245719348,
BEIS,The Insolvency Service,09/01/2017,Telecoms,FINANCE AND COMMERCIAL,BT CONFERENCING SERVICES,BA0000302063,22.57,245719348,
BEIS,The Insolvency Service,09/01/2017,Telecoms,FINANCE AND COMMERCIAL                                                                              ,BT CONFERENCING SERVICES,BA0000302063,24.13,245719348,
BEIS,The Insolvency Service,09/01/2017,Telecoms,FINANCE AND COMMERCIAL                                                                              ,BT CONFERENCING SERVICES,BA0000302063,31.93,245719348,
BEIS,The Insolvency Service,09/01/2017,Telecoms,FINANCE AND COMMERCIAL                                                                              ,BT CONFERENCING SERVICES,BA0000302063,72.24,245719348,
BEIS,The Insolvency Service,09/01/2017,Telecoms,FINANCE AND COMMERCIAL                                                                              ,BT CONFERENCING SERVICES,BA0000302063,81.88,245719348,
BEIS,The Insolvency Service,09/01/2017,Telecoms,INFORMATION TECHNOLOGY                                                                              ,BT CONFERENCING SERVICES,BA0000302063,0.31,245719348,
BEIS,The Insolvency Service,09/01/2017,Telecoms,INFORMATION TECHNOLOGY                                                                              ,BT CONFERENCING SERVICES,BA0000302063,0.68,245719348,
BEIS,The Insolvency Service,09/01/2017,Telecoms,INFORMATION TECHNOLOGY                                                                              ,BT CONFERENCING SERVICES,BA0000302063,12.64,245719348,
BEIS,The Insolvency Service,09/01/2017,Telecoms,INFORMATION TECHNOLOGY                                                                              ,BT CONFERENCING SERVICES,BA0000302063,24.95,245719348,
BEIS,The Insolvency Service,09/01/2017,Telecoms,INFORMATION TECHNOLOGY                                                                              ,BT CONFERENCING SERVICES,BA0000302063,60.01,245719348,
BEIS,The Insolvency Service,09/01/2017,Telecoms,INFORMATION TECHNOLOGY                                                                              ,BT CONFERENCING SERVICES,BA0000302063,114.25,245719348,
BEIS,The Insolvency Service,09/01/2017,Telecoms,INFORMATION TECHNOLOGY                                                                              ,BT CONFERENCING SERVICES,BA0000302063,357.86,245719348,
BEIS,The Insolvency Service,09/01/2017,Telecoms,INVESTIGATIONS & ENFORCEMENT                                                                        ,BT CONFERENCING SERVICES,BA0000302063,7.32,245719348,
BEIS,The Insolvency Service,09/01/2017,Telecoms,INVESTIGATIONS & ENFORCEMENT                                                                        ,BT CONFERENCING SERVICES,BA0000302063,14.88,245719348,
BEIS,The Insolvency Service,09/01/2017,Telecoms,INVESTIGATIONS & ENFORCEMENT                                                                        ,BT CONFERENCING SERVICES,BA0000302063,15.36,245719348,
BEIS,The Insolvency Service,09/01/2017,Telecoms,INVESTIGATIONS & ENFORCEMENT                                                                        ,BT CONFERENCING SERVICES,BA0000302063,27.83,245719348,
BEIS,The Insolvency Service,09/01/2017,Telecoms,INVESTIGATIONS & ENFORCEMENT                                                                        ,BT CONFERENCING SERVICES,BA0000302063,32.26,245719348,
BEIS,The Insolvency Service,09/01/2017,Telecoms,INVESTIGATIONS & ENFORCEMENT                                                                        ,BT CONFERENCING SERVICES,BA0000302063,32.86,245719348,
BEIS,The Insolvency Service,09/01/2017,Telecoms,INVESTIGATIONS & ENFORCEMENT                                                                        ,BT CONFERENCING SERVICES,BA0000302063,55.38,245719348,
BEIS,The Insolvency Service,09/01/2017,Telecoms,OFFICIAL RECEIVER SERVICES                                                                          ,BT CONFERENCING SERVICES,BA0000302063,1.46,245719348,
BEIS,The Insolvency Service,09/01/2017,Telecoms,OFFICIAL RECEIVER SERVICES                                                                          ,BT CONFERENCING SERVICES,BA0000302063,3.41,245719348,
BEIS,The Insolvency Service,09/01/2017,Telecoms,OFFICIAL RECEIVER SERVICES                                                                          ,BT CONFERENCING SERVICES,BA0000302063,4.72,245719348,
BEIS,The Insolvency Service,09/01/2017,Telecoms,OFFICIAL RECEIVER SERVICES                                                                          ,BT CONFERENCING SERVICES,BA0000302063,5.56,245719348,
BEIS,The Insolvency Service,09/01/2017,Telecoms,OFFICIAL RECEIVER SERVICES                                                                          ,BT CONFERENCING SERVICES,BA0000302063,8.39,245719348,
BEIS,The Insolvency Service,09/01/2017,Telecoms,OFFICIAL RECEIVER SERVICES                                                                          ,BT CONFERENCING SERVICES,BA0000302063,12.31,245719348,
BEIS,The Insolvency Service,09/01/2017,Telecoms,OFFICIAL RECEIVER SERVICES                                                                          ,BT CONFERENCING SERVICES,BA0000302063,13.50,245719348,
BEIS,The Insolvency Service,09/01/2017,Telecoms,OFFICIAL RECEIVER SERVICES                                                                          ,BT CONFERENCING SERVICES,BA0000302063,14.87,245719348,
BEIS,The Insolvency Service,09/01/2017,Telecoms,OFFICIAL RECEIVER SERVICES                                                                          ,BT CONFERENCING SERVICES,BA0000302063,21.98,245719348,
BEIS,The Insolvency Service,09/01/2017,Telecoms,OFFICIAL RECEIVER SERVICES                                                                          ,BT CONFERENCING SERVICES,BA0000302063,22.03,245719348,
BEIS,The Insolvency Service,09/01/2017,Telecoms,OFFICIAL RECEIVER SERVICES                                                                          ,BT CONFERENCING SERVICES,BA0000302063,42.79,245719348,
BEIS,The Insolvency Service,09/01/2017,Telecoms,OFFICIAL RECEIVER SERVICES                                                                          ,BT CONFERENCING SERVICES,BA0000302063,63.12,245719348,
BEIS,The Insolvency Service,09/01/2017,Telecoms,OFFICIAL RECEIVER SERVICES                                                                          ,BT CONFERENCING SERVICES,BA0000302063,68.50,245719348,
BEIS,The Insolvency Service,09/01/2017,Telecoms,OFFICIAL RECEIVER SERVICES                                                                          ,BT CONFERENCING SERVICES,BA0000302063,71.15,245719348,
BEIS,The Insolvency Service,09/01/2017,Telecoms,P&C - People Relations                                                                              ,BT CONFERENCING SERVICES,BA0000302063,19.67,245719348,
BEIS,The Insolvency Service,09/01/2017,Telecoms,P&C - Talent                                                                                        ,BT CONFERENCING SERVICES,BA0000302063,5.41,245719348,
BEIS,The Insolvency Service,09/01/2017,Telecoms,PEOPLE & CAPABILITY                                                                                 ,BT CONFERENCING SERVICES,BA0000302063,13.30,245719348,
BEIS,The Insolvency Service,09/01/2017,Telecoms,PEOPLE & CAPABILITY                                                                                 ,BT CONFERENCING SERVICES,BA0000302063,28.75,245719348,
BEIS,The Insolvency Service,09/01/2017,Telecoms,STRATEGY                                                                                            ,BT CONFERENCING SERVICES,BA0000302063,3.91,245719348,
BEIS,The Insolvency Service,09/01/2017,Postage,OFFICIAL RECEIVER SERVICES                                                                          ,CITY SPRINT UK LTD,BA0000302051,57.93,,
BEIS,The Insolvency Service,09/01/2017,Accommodation,ESTATES,COMPANIES HOUSE,BA0000302062,"26,186.07",GD255,
BEIS,The Insolvency Service,09/01/2017,Insolvency Case Related Costs,OFFICIAL RECEIVER SERVICES                                                                          ,COMPANIES HOUSE,BA0000302064,4.00,GD255,
BEIS,The Insolvency Service,09/01/2017,Investigation and Enforcement Costs,OFFICIAL RECEIVER SERVICES                                                                          ,HMCTS,BA0000301943,308.00,,
BEIS,The Insolvency Service,09/01/2017,Investigation and Enforcement Costs,OFFICIAL RECEIVER SERVICES                                                                          ,HMCTS,BA0000302059,308.00,,
BEIS,The Insolvency Service,09/01/2017,Insolvency Case Related Costs,OFFICIAL RECEIVER SERVICES                                                                          ,HPI LTD,BA0000302053,7.07,942407139,
BEIS,The Insolvency Service,09/01/2017,Insolvency Case Related Costs,FINANCE AND COMMERCIAL,INSOLVENCY SERVICE,BA0000302060,326.24,,
BEIS,The Insolvency Service,09/01/2017,Postage,ESTATES,PARCELFORCE WORLDWIDE,BA0000302048,5.99,243170002,
BEIS,The Insolvency Service,09/01/2017,Postage,OFFICIAL RECEIVER SERVICES                                                                          ,PARCELFORCE WORLDWIDE,BA0000302048,5.50,243170002,
BEIS,The Insolvency Service,09/01/2017,Postage,OFFICIAL RECEIVER SERVICES                                                                          ,PARCELFORCE WORLDWIDE,BA0000302048,16.18,243170002,
BEIS,The Insolvency Service,09/01/2017,Postage,OFFICIAL RECEIVER SERVICES                                                                          ,PARCELFORCE WORLDWIDE,BA0000302048,18.16,243170002,
BEIS,The Insolvency Service,09/01/2017,Postage,OFFICIAL RECEIVER SERVICES                                                                          ,PARCELFORCE WORLDWIDE,BA0000302048,25.34,243170002,
BEIS,The Insolvency Service,09/01/2017,Postage,OFFICIAL RECEIVER SERVICES                                                                          ,PARCELFORCE WORLDWIDE,BA0000302048,36.52,243170002,
BEIS,The Insolvency Service,09/01/2017,Postage,OFFICIAL RECEIVER SERVICES                                                                          ,PARCELFORCE WORLDWIDE,BA0000302048,67.89,243170002,
BEIS,The Insolvency Service,09/01/2017,Travel and Subsistence,INFORMATION TECHNOLOGY                                                                              ,Staff Payment,BA0000302066,9.60,,
BEIS,The Insolvency Service,09/01/2017,Travel and Subsistence,INFORMATION TECHNOLOGY                                                                              ,Staff Payment,BA0000302066,5.00,,
BEIS,The Insolvency Service,09/01/2017,Travel and Subsistence,INFORMATION TECHNOLOGY                                                                              ,Staff Payment,BA0000302066,30.00,,
BEIS,The Insolvency Service,09/01/2017,Travel and Subsistence,INFORMATION TECHNOLOGY                                                                              ,Staff Payment,BA0000302066,32.84,,
BEIS,The Insolvency Service,09/01/2017,Employee Related Costs,FINANCE AND COMMERCIAL,Staff Payment,BA0000302066,231.00,,
BEIS,The Insolvency Service,09/01/2017,Employee Related Costs,FINANCE AND COMMERCIAL,Staff Payment,BA0000302066,269.00,,
BEIS,The Insolvency Service,09/01/2017,Employee Related Costs,FINANCE AND COMMERCIAL,Staff Payment,BA0000302066,95.00,,
BEIS,The Insolvency Service,09/01/2017,Employee Related Costs,FINANCE AND COMMERCIAL,Staff Payment,BA0000302066,283.00,,
BEIS,The Insolvency Service,09/01/2017,Travel and Subsistence,FINANCE AND COMMERCIAL                                                                              ,Staff Payment,BA0000302066,19.00,,
BEIS,The Insolvency Service,09/01/2017,Travel and Subsistence,INVESTIGATIONS & ENFORCEMENT                                                                        ,Staff Payment,BA0000302066,28.80,,
BEIS,The Insolvency Service,09/01/2017,Travel and Subsistence,INVESTIGATIONS & ENFORCEMENT                                                                        ,Staff Payment,BA0000302066,54.55,,
BEIS,The Insolvency Service,09/01/2017,Travel and Subsistence,OFFICIAL RECEIVER SERVICES                                                                          ,Staff Payment,BA0000302066,55.00,,
BEIS,The Insolvency Service,09/01/2017,Travel and Subsistence,OFFICIAL RECEIVER SERVICES                                                                          ,Staff Payment,BA0000302066,37.80,,
BEIS,The Insolvency Service,09/01/2017,Travel and Subsistence,OFFICIAL RECEIVER SERVICES                                                                          ,Staff Payment,BA0000302066,36.00,,
BEIS,The Insolvency Service,09/01/2017,Travel and Subsistence,OFFICIAL RECEIVER SERVICES                                                                          ,Staff Payment,BA0000302066,1.20,,
BEIS,The Insolvency Service,09/01/2017,Travel and Subsistence,OFFICIAL RECEIVER SERVICES                                                                          ,Staff Payment,BA0000302066,13.50,,
BEIS,The Insolvency Service,09/01/2017,Travel and Subsistence,OFFICIAL RECEIVER SERVICES                                                                          ,Staff Payment,BA0000302066,11.20,,
BEIS,The Insolvency Service,09/01/2017,Travel and Subsistence,OFFICIAL RECEIVER SERVICES                                                                          ,Staff Payment,BA0000302066,126.90,,
BEIS,The Insolvency Service,09/01/2017,Travel and Subsistence,OFFICIAL RECEIVER SERVICES                                                                          ,Staff Payment,BA0000302066,97.20,,
BEIS,The Insolvency Service,09/01/2017,Travel and Subsistence,FINANCE AND COMMERCIAL                                                                              ,Staff Payment,BA0000302066,26.10,,
BEIS,The Insolvency Service,09/01/2017,Travel and Subsistence,INFORMATION TECHNOLOGY                                                                              ,Staff Payment,BA0000302066,16.70,,
BEIS,The Insolvency Service,09/01/2017,Travel and Subsistence,INVESTIGATIONS & ENFORCEMENT                                                                        ,Staff Payment,BA0000302066,4.97,,
BEIS,The Insolvency Service,09/01/2017,Employee Related Costs,P&C - People Relations                                                                              ,Staff Payment,BA0000302066,231.00,,
BEIS,The Insolvency Service,09/01/2017,Employee Related Costs,PEOPLE & CAPABILITY                                                                                 ,Staff Payment,BA0000302066,231.00,,
BEIS,The Insolvency Service,09/01/2017,Employee Related Costs,OFFICIAL RECEIVER SERVICES                                                                          ,Staff Payment,BA0000302061,153.20,,
BEIS,The Insolvency Service,09/01/2017,Telecoms,BUSINESS SERVICES DIRECTORATE                                                                       ,SYNTEC LTD                                                  ,BA0000302052,387.77,810309963,
BEIS,The Insolvency Service,09/01/2017,Insolvency Case Related Costs,OFFICIAL RECEIVER SERVICES                                                                          ,THE STATIONERY OFFICE LTD,BA0000302049,69.90,662774703,
BEIS,The Insolvency Service,09/01/2017,Insolvency Case Related Costs,OFFICIAL RECEIVER SERVICES                                                                          ,THE STATIONERY OFFICE LTD,BA0000302050,139.80,662774703,
BEIS,The Insolvency Service,10/01/2017,Training Costs,FINANCE AND COMMERCIAL,CAPITA BUSINESS SERVICES LTD,BA0000302073,285.48,618184140,
BEIS,The Insolvency Service,10/01/2017,Training Costs,FINANCE AND COMMERCIAL                                                                              ,CAPITA BUSINESS SERVICES LTD,BA0000302081,799.20,618184140,
BEIS,The Insolvency Service,10/01/2017,Training Costs,FINANCE AND COMMERCIAL                                                                              ,CAPITA BUSINESS SERVICES LTD,BA0000302082,-799.20,618184140,
BEIS,The Insolvency Service,10/01/2017,Accommodation,ESTATES,CBRE Ltd,BA0000302089,"13,648.57",,
BEIS,The Insolvency Service,10/01/2017,Accommodation,ESTATES,CBRE Ltd,BA0000302090,489.60,,
BEIS,The Insolvency Service,10/01/2017,Insolvency Case Related Costs,BUSINESS SERVICES DIRECTORATE                                                                       ,COMPANIES HOUSE,BA0000302087,4.00,GD255,
BEIS,The Insolvency Service,10/01/2017,Insolvency Case Related Costs,OFFICIAL RECEIVER SERVICES                                                                          ,COMPANIES HOUSE,BA0000302092,4.00,GD255,
BEIS,The Insolvency Service,10/01/2017,Insolvency Case Related Costs,OFFICIAL RECEIVER SERVICES                                                                          ,COMPANIES HOUSE,BA0000302107,4.00,GD255,
BEIS,The Insolvency Service,10/01/2017,Insolvency Case Related Costs,OFFICIAL RECEIVER SERVICES                                                                          ,COMPANIES HOUSE,BA0000302108,4.00,GD255,
BEIS,The Insolvency Service,10/01/2017,Insolvency Case Related Costs,OFFICIAL RECEIVER SERVICES                                                                          ,COMPANIES HOUSE,BA0000302097,4.00,GD255,
BEIS,The Insolvency Service,10/01/2017,Insolvency Case Related Costs,OFFICIAL RECEIVER SERVICES                                                                          ,COMPANIES HOUSE,BA0000302098,4.00,GD255,
BEIS,The Insolvency Service,10/01/2017,Insolvency Case Related Costs,OFFICIAL RECEIVER SERVICES                                                                          ,COMPANIES HOUSE,BA0000302105,4.00,GD255,
BEIS,The Insolvency Service,10/01/2017,Investigation and Enforcement Costs,INVESTIGATIONS & ENFORCEMENT                                                                        ,DICKINSON DEES                                              ,BA0000302117,"1,200.00",,
BEIS,The Insolvency Service,10/01/2017,Accommodation,OFFICIAL RECEIVER SERVICES                                                                          ,EC GROUP,BA0000302070,330.23,235525471,
BEIS,The Insolvency Service,10/01/2017,Accommodation,OFFICIAL RECEIVER SERVICES                                                                          ,EC GROUP,BA0000302072,965.13,235525471,
BEIS,The Insolvency Service,10/01/2017,Telecoms,INFORMATION TECHNOLOGY                                                                              ,EE LTD (AIR TIME)                                           ,BA0000302071,"6,067.80",771592016,
BEIS,The Insolvency Service,10/01/2017,Investigation and Enforcement Costs,CUSTOMER AND COMMUNICATIONS                                                                         ,GORKANA GROUP LTD                                           ,BA0000302068,564.75,757158012,
BEIS,The Insolvency Service,10/01/2017,Agency Workers,INFORMATION TECHNOLOGY                                                                              ,HAYS SPECIALIST RECRUITMENT LTD,BA0000302083,602.40,773695871,
BEIS,The Insolvency Service,10/01/2017,Employee Related Costs,FINANCE AND COMMERCIAL                                                                              ,HAYS SPECIALIST RECRUITMENT LTD,BA0000302069,"1,368.00",773695871,
BEIS,The Insolvency Service,10/01/2017,Insolvency Case Related Costs,OFFICIAL RECEIVER SERVICES                                                                          ,HPI LTD,BA0000302075,23.33,942407139,
BEIS,The Insolvency Service,10/01/2017,Insolvency Case Related Costs,OFFICIAL RECEIVER SERVICES                                                                          ,HPI LTD,BA0000302104,7.27,942407139,
BEIS,The Insolvency Service,10/01/2017,Insolvency Case Related Costs,FINANCE AND COMMERCIAL,INSOLVENCY SERVICE,BA0000302110,292.01,,
BEIS,The Insolvency Service,10/01/2017,Insolvency Case Related Costs,OFFICIAL RECEIVER SERVICES                                                                          ,INSOLVENCY SERVICE,BA0000302086,20.00,,
BEIS,The Insolvency Service,10/01/2017,Computer and IT Systems,INFORMATION TECHNOLOGY                                                                              ,KDS UK LTD,BA0000302109,"2,786.40",776463881,
BEIS,The Insolvency Service,10/01/2017,Accommodation,ESTATES,MAXET HOUSE PROPERTIES LTD                                  ,BA0000302091,450.00,,
BEIS,The Insolvency Service,10/01/2017,Postage,OFFICIAL RECEIVER SERVICES                                                                          ,ROYAL MAIL GROUP LTD - RESPONSE SERVICES)                   ,BA0000302093,17.48,243170002,
BEIS,The Insolvency Service,10/01/2017,Travel and Subsistence,BUSINESS SERVICES DIRECTORATE                                                                       ,Staff Payment,BA0000302111,50.00,,
BEIS,The Insolvency Service,10/01/2017,Investigation and Enforcement Costs,INVESTIGATIONS & ENFORCEMENT                                                                        ,THE SHERIFFS OFFICE                                         ,BA0000302085,75.00,,
BEIS,The Insolvency Service,10/01/2017,Telecoms,BUSINESS SERVICES DIRECTORATE                                                                       ,TIMICO LIMITED                                              ,BA0000302096,"2,097.53",852368804,
BEIS,The Insolvency Service,10/01/2017,Accounting and Banking,BUSINESS SERVICES DIRECTORATE                                                                       ,TRUECOMMERCE                                                ,BA0000302094,780.00,,
BEIS,The Insolvency Service,10/01/2017,Computer and IT Systems,INFORMATION TECHNOLOGY                                                                              ,UKCLOUD LTD                                                 ,BA0000302084,"4,462.55",122134958,
BEIS,The Insolvency Service,10/01/2017,Telecoms,INFORMATION TECHNOLOGY                                                                              ,VODAFONE - CABLE & WIRELESS COMMUNICATIONS,BA0000302074,"2,899.54",232303710,
BEIS,The Insolvency Service,10/01/2017,Telecoms,OFFICIAL RECEIVER SERVICES                                                                          ,VODAFONE - CABLE & WIRELESS COMMUNICATIONS,BA0000302106,210.44,232303710,
BEIS,The Insolvency Service,11/01/2017,Computer and IT Systems,INFORMATION TECHNOLOGY                                                                              ,CADLINE LIMITED                                             ,BA0000302133,"1,620.00",,
BEIS,The Insolvency Service,11/01/2017,Computer and IT Systems,INFORMATION TECHNOLOGY                                                                              ,CADLINE LIMITED                                             ,BA0000302133,"11,016.00",,
BEIS,The Insolvency Service,11/01/2017,Insolvency Case Related Costs,OFFICIAL RECEIVER SERVICES                                                                          ,COMPANIES HOUSE,BA0000302132,4.00,GD255,
BEIS,The Insolvency Service,11/01/2017,Postage,OFFICIAL RECEIVER SERVICES                                                                          ,DX NETWORK SERVICES LTD,BA0000302118,105.76,849741385,
BEIS,The Insolvency Service,11/01/2017,Accommodation,ESTATES,E.ON (LARGE PAYMENTS),BA0000302150,"1,783.28",559097889,
BEIS,The Insolvency Service,11/01/2017,Computer and IT Systems,INFORMATION TECHNOLOGY                                                                              ,GUIDANCE SOFTWARE,BA0000302113,917.26,793275689,
BEIS,The Insolvency Service,11/01/2017,Computer and IT Systems,INFORMATION TECHNOLOGY                                                                              ,GUIDANCE SOFTWARE,BA0000302115,"2,751.77",793275689,
BEIS,The Insolvency Service,11/01/2017,Investigation and Enforcement Costs,OFFICIAL RECEIVER SERVICES                                                                          ,HMCTS,BA0000302088,528.00,,
BEIS,The Insolvency Service,11/01/2017,Investigation and Enforcement Costs,OFFICIAL RECEIVER SERVICES                                                                          ,HMCTS,BA0000302136,308.00,,
BEIS,The Insolvency Service,11/01/2017,Investigation and Enforcement Costs,OFFICIAL RECEIVER SERVICES                                                                          ,HMCTS,BA0000302138,308.00,,
BEIS,The Insolvency Service,11/01/2017,Insolvency Case Related Costs,FINANCE AND COMMERCIAL,INSOLVENCY SERVICE,BA0000302134,251.89,,
BEIS,The Insolvency Service,11/01/2017,Insolvency Case Related Costs,OFFICIAL RECEIVER SERVICES                                                                          ,INSOLVENCY SERVICE,BA0000302135,40.00,,
BEIS,The Insolvency Service,11/01/2017,Office Supplies and Services,OFFICIAL RECEIVER SERVICES                                                                          ,NEOPOST LIMITED (CONSUMABLES),BA0000302131,275.98,597265489,
BEIS,The Insolvency Service,11/01/2017,Postage,FINANCE AND COMMERCIAL                                                                              ,ROYAL MAIL (REDIRECTION)                                    ,BA0000302112,"18,200.00",,
BEIS,The Insolvency Service,11/01/2017,Postage,INVESTIGATIONS & ENFORCEMENT                                                                        ,ROYAL MAIL GROUP LTD - RESPONSE SERVICES)                   ,BA0000302139,131.32,243170002,
BEIS,The Insolvency Service,11/01/2017,Accommodation,ESTATES,SAVILLS COMMERCIAL LTD,BA0000302153,180.61,922945804,
BEIS,The Insolvency Service,11/01/2017,Accommodation,ESTATES,SAVILLS COMMERCIAL LTD,BA0000302154,281.77,922945804,
BEIS,The Insolvency Service,11/01/2017,Insolvency Case Related Costs,FINANCE AND COMMERCIAL                                                                              ,SIRS (EUROPE) LTD,BA0000302116,"13,680.00",990834974,
BEIS,The Insolvency Service,11/01/2017,Travel and Subsistence,BUSINESS SERVICES DIRECTORATE                                                                       ,Staff Payment,BA0000302149,73.79,,
BEIS,The Insolvency Service,11/01/2017,Travel and Subsistence,BUSINESS SERVICES DIRECTORATE                                                                       ,Staff Payment,BA0000302149,3.20,,
BEIS,The Insolvency Service,11/01/2017,Travel and Subsistence,BUSINESS SERVICES DIRECTORATE                                                                       ,Staff Payment,BA0000302149,20.20,,
BEIS,The Insolvency Service,11/01/2017,Travel and Subsistence,EXTERNAL AFFAIRS                                                                                    ,Staff Payment,BA0000302149,8.50,,
BEIS,The Insolvency Service,11/01/2017,Travel and Subsistence,INVESTIGATIONS & ENFORCEMENT                                                                        ,Staff Payment,BA0000302149,7.20,,
BEIS,The Insolvency Service,11/01/2017,Travel and Subsistence,BUSINESS SERVICES DIRECTORATE                                                                       ,Staff Payment,BA0000302149,12.00,,
BEIS,The Insolvency Service,11/01/2017,Travel and Subsistence,BUSINESS SERVICES DIRECTORATE                                                                       ,Staff Payment,BA0000302149,12.00,,
BEIS,The Insolvency Service,11/01/2017,Travel and Subsistence,EXTERNAL AFFAIRS                                                                                    ,Staff Payment,BA0000302149,12.60,,
BEIS,The Insolvency Service,11/01/2017,Travel and Subsistence,EXTERNAL AFFAIRS                                                                                    ,Staff Payment,BA0000302149,44.00,,
BEIS,The Insolvency Service,11/01/2017,Travel and Subsistence,INFORMATION TECHNOLOGY                                                                              ,Staff Payment,BA0000302149,170.80,,
BEIS,The Insolvency Service,11/01/2017,Travel and Subsistence,INVESTIGATIONS & ENFORCEMENT                                                                        ,Staff Payment,BA0000302149,80.10,,
BEIS,The Insolvency Service,11/01/2017,Travel and Subsistence,INVESTIGATIONS & ENFORCEMENT                                                                        ,Staff Payment,BA0000302149,12.00,,
BEIS,The Insolvency Service,11/01/2017,Travel and Subsistence,INVESTIGATIONS & ENFORCEMENT                                                                        ,Staff Payment,BA0000302149,18.90,,
BEIS,The Insolvency Service,11/01/2017,Travel and Subsistence,INVESTIGATIONS & ENFORCEMENT                                                                        ,Staff Payment,BA0000302149,34.65,,
BEIS,The Insolvency Service,11/01/2017,Travel and Subsistence,OFFICIAL RECEIVER SERVICES                                                                          ,Staff Payment,BA0000302149,77.00,,
BEIS,The Insolvency Service,11/01/2017,Travel and Subsistence,OFFICIAL RECEIVER SERVICES                                                                          ,Staff Payment,BA0000302149,3.00,,
BEIS,The Insolvency Service,11/01/2017,Travel and Subsistence,OFFICIAL RECEIVER SERVICES                                                                          ,Staff Payment,BA0000302149,15.30,,
BEIS,The Insolvency Service,11/01/2017,Travel and Subsistence,OFFICIAL RECEIVER SERVICES                                                                          ,Staff Payment,BA0000302149,1.00,,
BEIS,The Insolvency Service,11/01/2017,Travel and Subsistence,OFFICIAL RECEIVER SERVICES                                                                          ,Staff Payment,BA0000302149,3.60,,
BEIS,The Insolvency Service,11/01/2017,Travel and Subsistence,OFFICIAL RECEIVER SERVICES                                                                          ,Staff Payment,BA0000302149,36.00,,
BEIS,The Insolvency Service,11/01/2017,Travel and Subsistence,BUSINESS SERVICES DIRECTORATE                                                                       ,Staff Payment,BA0000302149,10.00,,
BEIS,The Insolvency Service,11/01/2017,Travel and Subsistence,BUSINESS SERVICES DIRECTORATE                                                                       ,Staff Payment,BA0000302149,58.80,,
BEIS,The Insolvency Service,11/01/2017,Travel and Subsistence,BUSINESS SERVICES DIRECTORATE                                                                       ,Staff Payment,BA0000302149,20.49,,
BEIS,The Insolvency Service,11/01/2017,Travel and Subsistence,BUSINESS SERVICES DIRECTORATE                                                                       ,Staff Payment,BA0000302149,19.77,,
BEIS,The Insolvency Service,11/01/2017,Travel and Subsistence,BUSINESS SERVICES DIRECTORATE                                                                       ,Staff Payment,BA0000302149,30.00,,
BEIS,The Insolvency Service,11/01/2017,Travel and Subsistence,BUSINESS SERVICES DIRECTORATE                                                                       ,Staff Payment,BA0000302149,25.00,,
BEIS,The Insolvency Service,11/01/2017,Travel and Subsistence,BUSINESS SERVICES DIRECTORATE                                                                       ,Staff Payment,BA0000302149,25.00,,
BEIS,The Insolvency Service,11/01/2017,Travel and Subsistence,BUSINESS SERVICES DIRECTORATE                                                                       ,Staff Payment,BA0000302149,69.17,,
BEIS,The Insolvency Service,11/01/2017,Travel and Subsistence,BUSINESS SERVICES DIRECTORATE                                                                       ,Staff Payment,BA0000302149,50.15,,
BEIS,The Insolvency Service,11/01/2017,Travel and Subsistence,BUSINESS SERVICES DIRECTORATE                                                                       ,Staff Payment,BA0000302149,52.42,,
BEIS,The Insolvency Service,11/01/2017,Travel and Subsistence,EXTERNAL AFFAIRS                                                                                    ,Staff Payment,BA0000302149,8.69,,
BEIS,The Insolvency Service,11/01/2017,Travel and Subsistence,INVESTIGATIONS & ENFORCEMENT                                                                        ,Staff Payment,BA0000302149,22.20,,
BEIS,The Insolvency Service,11/01/2017,Travel and Subsistence,INVESTIGATIONS & ENFORCEMENT                                                                        ,Staff Payment,BA0000302149,16.60,,
BEIS,The Insolvency Service,11/01/2017,Travel and Subsistence,INVESTIGATIONS & ENFORCEMENT                                                                        ,Staff Payment,BA0000302149,25.00,,
BEIS,The Insolvency Service,11/01/2017,Insolvency Case Related Costs,INVESTIGATIONS & ENFORCEMENT                                                                        ,Staff Payment,BA0000302149,14.00,,
BEIS,The Insolvency Service,11/01/2017,Insolvency Case Related Costs,INVESTIGATIONS & ENFORCEMENT                                                                        ,Staff Payment,BA0000302149,7.00,,
BEIS,The Insolvency Service,11/01/2017,Employee Related Costs,OFFICIAL RECEIVER SERVICES                                                                          ,Staff Payment,BA0000302137,"1,050.00",,
BEIS,The Insolvency Service,11/01/2017,Employee Related Costs,P&C - People Relations                                                                              ,Staff Payment,BA0000302149,184.00,,
BEIS,The Insolvency Service,11/01/2017,Office Supplies and Services,EXTERNAL AFFAIRS                                                                                    ,Staff Payment,BA0000302149,14.74,,
BEIS,The Insolvency Service,12/01/2017,Agency Workers,FINANCE AND COMMERCIAL                                                                              ,ALLEN LANE LIMITED,BA0000302173,49.92,835970985,
BEIS,The Insolvency Service,12/01/2017,Agency Workers,FINANCE AND COMMERCIAL                                                                              ,ALLEN LANE LIMITED,BA0000302174,"10,020.24",835970985,
BEIS,The Insolvency Service,12/01/2017,Agency Workers,FINANCE AND COMMERCIAL                                                                              ,ALLEN LANE LIMITED,BA0000302175,"2,939.10",835970985,
BEIS,The Insolvency Service,12/01/2017,Accommodation,FINANCE AND COMMERCIAL                                                                              ,BANNER BUSINESS SERVICES Ltd.,BA0000302159,79.20,731860439,
BEIS,The Insolvency Service,12/01/2017,Accommodation,FINANCE AND COMMERCIAL                                                                              ,BANNER BUSINESS SERVICES Ltd.,BA0000302159,571.50,731860439,
BEIS,The Insolvency Service,12/01/2017,Accommodation,OFFICIAL RECEIVER SERVICES                                                                          ,BANNER BUSINESS SERVICES Ltd.,BA0000302159,7.20,731860439,
BEIS,The Insolvency Service,12/01/2017,Accommodation,OFFICIAL RECEIVER SERVICES                                                                          ,BANNER BUSINESS SERVICES Ltd.,BA0000302159,12.60,731860439,
BEIS,The Insolvency Service,12/01/2017,Accommodation,OFFICIAL RECEIVER SERVICES                                                                          ,BANNER BUSINESS SERVICES Ltd.,BA0000302159,14.04,731860439,
BEIS,The Insolvency Service,12/01/2017,Accommodation,OFFICIAL RECEIVER SERVICES                                                                          ,BANNER BUSINESS SERVICES Ltd.,BA0000302159,14.40,731860439,
BEIS,The Insolvency Service,12/01/2017,Accommodation,OFFICIAL RECEIVER SERVICES                                                                          ,BANNER BUSINESS SERVICES Ltd.,BA0000302159,16.20,731860439,
BEIS,The Insolvency Service,12/01/2017,Accommodation,OFFICIAL RECEIVER SERVICES                                                                          ,BANNER BUSINESS SERVICES Ltd.,BA0000302159,21.60,731860439,
BEIS,The Insolvency Service,12/01/2017,Accommodation,OFFICIAL RECEIVER SERVICES                                                                          ,BANNER BUSINESS SERVICES Ltd.,BA0000302159,26.10,731860439,
BEIS,The Insolvency Service,12/01/2017,Accommodation,OFFICIAL RECEIVER SERVICES                                                                          ,BANNER BUSINESS SERVICES Ltd.,BA0000302159,27.00,731860439,
BEIS,The Insolvency Service,12/01/2017,Accommodation,OFFICIAL RECEIVER SERVICES                                                                          ,BANNER BUSINESS SERVICES Ltd.,BA0000302159,37.10,731860439,
BEIS,The Insolvency Service,12/01/2017,Accommodation,OFFICIAL RECEIVER SERVICES                                                                          ,BANNER BUSINESS SERVICES Ltd.,BA0000302159,45.30,731860439,
BEIS,The Insolvency Service,12/01/2017,Accommodation,OFFICIAL RECEIVER SERVICES                                                                          ,BANNER BUSINESS SERVICES Ltd.,BA0000302159,87.20,731860439,
BEIS,The Insolvency Service,12/01/2017,Accommodation,OFFICIAL RECEIVER SERVICES                                                                          ,BANNER BUSINESS SERVICES Ltd.,BA0000302159,225.00,731860439,
BEIS,The Insolvency Service,12/01/2017,Investigation and Enforcement Costs,INVESTIGATIONS & ENFORCEMENT                                                                        ,BOND DICKINSON                                              ,BA0000302162,65.00,123392627,
BEIS,The Insolvency Service,12/01/2017,Insolvency Case Related Costs,OFFICIAL RECEIVER SERVICES                                                                          ,COMPANIES HOUSE,BA0000302176,4.00,GD255,
BEIS,The Insolvency Service,12/01/2017,Insolvency Case Related Costs,OFFICIAL RECEIVER SERVICES                                                                          ,COMPANIES HOUSE,BA0000302160,4.00,GD255,
BEIS,The Insolvency Service,12/01/2017,Insolvency Case Related Costs,OFFICIAL RECEIVER SERVICES                                                                          ,COMPANIES HOUSE,BA0000302161,5.00,GD255,
BEIS,The Insolvency Service,12/01/2017,Agency Workers,INFORMATION TECHNOLOGY                                                                              ,HAYS SPECIALIST RECRUITMENT LTD,BA0000302164,"3,012.00",773695871,
BEIS,The Insolvency Service,12/01/2017,Insolvency Case Related Costs,OFFICIAL RECEIVER SERVICES                                                                          ,INSOLVENCY SERVICE,BA0000302163,20.00,,
BEIS,The Insolvency Service,12/01/2017,Accommodation,BUSINESS SERVICES DIRECTORATE                                                                       ,IRON MOUNTAIN (UK) LTD,BA0000302172,8.82,607937516,
BEIS,The Insolvency Service,12/01/2017,Accommodation,BUSINESS SERVICES DIRECTORATE                                                                       ,IRON MOUNTAIN (UK) LTD,BA0000302172,"1,465.50",607937516,
BEIS,The Insolvency Service,12/01/2017,Accommodation,EXTERNAL AFFAIRS                                                                                    ,IRON MOUNTAIN (UK) LTD,BA0000302172,172.47,607937516,
BEIS,The Insolvency Service,12/01/2017,Accommodation,INFORMATION TECHNOLOGY                                                                              ,IRON MOUNTAIN (UK) LTD,BA0000302172,403.42,607937516,
BEIS,The Insolvency Service,12/01/2017,Accommodation,INVESTIGATIONS & ENFORCEMENT                                                                        ,IRON MOUNTAIN (UK) LTD,BA0000302172,"2,572.38",607937516,
BEIS,The Insolvency Service,12/01/2017,Accommodation,PEOPLE & CAPABILITY                                                                                 ,IRON MOUNTAIN (UK) LTD,BA0000302172,65.63,607937516,
BEIS,The Insolvency Service,12/01/2017,Accommodation,OFFICIAL RECEIVER SERVICES                                                                          ,IRON MOUNTAIN (UK) LTD,BA0000302172,"19,051.19",607937516,
BEIS,The Insolvency Service,13/01/2017,Accommodation,ESTATES,BRITISH GAS BUSINESS,BA0000302185,566.70,684966762,
BEIS,The Insolvency Service,13/01/2017,Accommodation,ESTATES,BRITISH GAS BUSINESS,BA0000302186,179.12,684966762,
BEIS,The Insolvency Service,13/01/2017,Training Costs,BUSINESS SERVICES DIRECTORATE                                                                       ,CAPITA BUSINESS SERVICES LTD,BA0000302188,319.20,618184140,
BEIS,The Insolvency Service,13/01/2017,Accommodation,ESTATES,DEPARTMENT FOR WORK & PENSIONS,BA0000302187,799.03,888815554,
BEIS,The Insolvency Service,13/01/2017,Investigation and Enforcement Costs,CUSTOMER AND COMMUNICATIONS                                                                         ,GORKANA GROUP LTD                                           ,BA0000302192,"3,465.00",757158012,
BEIS,The Insolvency Service,13/01/2017,Legal Costs,P&C - People Relations                                                                              ,GOVERNMENT LEGAL DEPARTMENT                                 ,BA0000302191,413.38,888823066,
BEIS,The Insolvency Service,13/01/2017,Legal Costs,PEOPLE & CAPABILITY                                                                                 ,GOVERNMENT LEGAL DEPARTMENT                                 ,BA0000302191,889.32,888823066,
BEIS,The Insolvency Service,13/01/2017,Accommodation,ESTATES,NORTHAMPTONSHIRE COUNTY COUNCIL,BA0000302184,301.00,,
BEIS,The Insolvency Service,13/01/2017,Postage,INFORMATION TECHNOLOGY                                                                              ,ROYAL MAIL  (re-direction),BA0000302179,260.00,243170002,
BEIS,The Insolvency Service,13/01/2017,Postage,INFORMATION TECHNOLOGY                                                                              ,ROYAL MAIL  (re-direction),BA0000302180,260.00,243170002,
BEIS,The Insolvency Service,13/01/2017,Postage,INFORMATION TECHNOLOGY                                                                              ,ROYAL MAIL  (re-direction),BA0000302181,260.00,243170002,
BEIS,The Insolvency Service,13/01/2017,Postage,INFORMATION TECHNOLOGY                                                                              ,ROYAL MAIL  (re-direction),BA0000302182,260.00,243170002,
BEIS,The Insolvency Service,13/01/2017,Travel and Subsistence,EXTERNAL AFFAIRS                                                                                    ,Staff Payment,BA0000302190,36.70,,
BEIS,The Insolvency Service,13/01/2017,Travel and Subsistence,FINANCE AND COMMERCIAL                                                                              ,Staff Payment,BA0000302189,4.80,,
BEIS,The Insolvency Service,13/01/2017,Travel and Subsistence,INVESTIGATIONS & ENFORCEMENT                                                                        ,Staff Payment,BA0000302189,17.30,,
BEIS,The Insolvency Service,13/01/2017,Travel and Subsistence,BUSINESS SERVICES DIRECTORATE                                                                       ,Staff Payment,BA0000302189,80.00,,
BEIS,The Insolvency Service,13/01/2017,Travel and Subsistence,OFFICIAL RECEIVER SERVICES                                                                          ,Staff Payment,BA0000302189,3.40,,
BEIS,The Insolvency Service,13/01/2017,Travel and Subsistence,OFFICIAL RECEIVER SERVICES                                                                          ,Staff Payment,BA0000302189,13.20,,
BEIS,The Insolvency Service,13/01/2017,Travel and Subsistence,OFFICIAL RECEIVER SERVICES                                                                          ,Staff Payment,BA0000302189,36.45,,
BEIS,The Insolvency Service,13/01/2017,Travel and Subsistence,OFFICIAL RECEIVER SERVICES                                                                          ,Staff Payment,BA0000302189,41.85,,
BEIS,The Insolvency Service,13/01/2017,Travel and Subsistence,OFFICIAL RECEIVER SERVICES                                                                          ,Staff Payment,BA0000302189,36.45,,
BEIS,The Insolvency Service,13/01/2017,Travel and Subsistence,OFFICIAL RECEIVER SERVICES                                                                          ,Staff Payment,BA0000302189,58.50,,
BEIS,The Insolvency Service,13/01/2017,Travel and Subsistence,OFFICIAL RECEIVER SERVICES                                                                          ,Staff Payment,BA0000302189,3.00,,
BEIS,The Insolvency Service,13/01/2017,Travel and Subsistence,OFFICIAL RECEIVER SERVICES                                                                          ,Staff Payment,BA0000302189,22.95,,
BEIS,The Insolvency Service,13/01/2017,Travel and Subsistence,OFFICIAL RECEIVER SERVICES                                                                          ,Staff Payment,BA0000302189,5.60,,
BEIS,The Insolvency Service,13/01/2017,Travel and Subsistence,OFFICIAL RECEIVER SERVICES                                                                          ,Staff Payment,BA0000302190,58.10,,
BEIS,The Insolvency Service,13/01/2017,Travel and Subsistence,BUSINESS SERVICES DIRECTORATE                                                                       ,Staff Payment,BA0000302189,4.99,,
BEIS,The Insolvency Service,13/01/2017,Travel and Subsistence,EXTERNAL AFFAIRS                                                                                    ,Staff Payment,BA0000302190,55.66,,
BEIS,The Insolvency Service,13/01/2017,Travel and Subsistence,FINANCE AND COMMERCIAL                                                                              ,Staff Payment,BA0000302189,33.95,,
BEIS,The Insolvency Service,13/01/2017,Travel and Subsistence,INVESTIGATIONS & ENFORCEMENT                                                                        ,Staff Payment,BA0000302189,32.62,,
BEIS,The Insolvency Service,13/01/2017,Travel and Subsistence,INVESTIGATIONS & ENFORCEMENT                                                                        ,Staff Payment,BA0000302190,5.00,,
BEIS,The Insolvency Service,13/01/2017,Travel and Subsistence,OFFICIAL RECEIVER SERVICES                                                                          ,Staff Payment,BA0000302189,4.40,,
BEIS,The Insolvency Service,13/01/2017,Travel and Subsistence,OFFICIAL RECEIVER SERVICES                                                                          ,Staff Payment,BA0000302189,3.29,,
BEIS,The Insolvency Service,13/01/2017,Travel and Subsistence,OFFICIAL RECEIVER SERVICES                                                                          ,Staff Payment,BA0000302189,3.99,,
BEIS,The Insolvency Service,13/01/2017,Travel and Subsistence,OFFICIAL RECEIVER SERVICES                                                                          ,Staff Payment,BA0000302190,4.90,,
BEIS,The Insolvency Service,13/01/2017,Insolvency Case Related Costs,INVESTIGATIONS & ENFORCEMENT                                                                        ,Staff Payment,BA0000302190,7.00,,
BEIS,The Insolvency Service,13/01/2017,Employee Related Costs,OFFICIAL RECEIVER SERVICES                                                                          ,Staff Payment,BA0000302189,3.50,,
BEIS,The Insolvency Service,13/01/2017,Employee Related Costs,P&C - People Relations                                                                              ,Staff Payment,BA0000302190,231.00,,
BEIS,The Insolvency Service,13/01/2017,Employee Related Costs,PEOPLE & CAPABILITY                                                                                 ,Staff Payment,BA0000302190,231.00,,
BEIS,The Insolvency Service,13/01/2017,Insolvency Case Related Costs,OFFICIAL RECEIVER SERVICES                                                                          ,THE STATIONERY OFFICE LTD,BA0000302183,72.24,662774703,
BEIS,The Insolvency Service,16/01/2017,Accommodation,ESTATES,EDF ENERGY,BA0000302240,"1,388.18",523041202,
BEIS,The Insolvency Service,17/01/2017,Investigation and Enforcement Costs,INVESTIGATIONS & ENFORCEMENT                                                                        ,ANDREW JACKSON                                              ,BA0000302142,30.60,,
BEIS,The Insolvency Service,17/01/2017,Agency Workers,P&C - People Relations                                                                              ,BADENOCH & CLARK,BA0000302222,673.49,232347975,
BEIS,The Insolvency Service,17/01/2017,Accommodation,FINANCE AND COMMERCIAL                                                                              ,BRITISH GAS BUSINESS,BA0000302228,28.38,684966762,
BEIS,The Insolvency Service,17/01/2017,Accommodation,FINANCE AND COMMERCIAL                                                                              ,BRITISH GAS BUSINESS,BA0000302231,-28.38,684966762,
BEIS,The Insolvency Service,17/01/2017,Accommodation,FINANCE AND COMMERCIAL                                                                              ,BRITISH GAS BUSINESS,BA0000302232,29.01,684966762,
BEIS,The Insolvency Service,17/01/2017,Accommodation,FINANCE AND COMMERCIAL                                                                              ,BRITISH GAS BUSINESS,BA0000302233,-29.01,684966762,
BEIS,The Insolvency Service,17/01/2017,Accommodation,FINANCE AND COMMERCIAL                                                                              ,BRITISH GAS BUSINESS,BA0000302234,58.32,684966762,
BEIS,The Insolvency Service,17/01/2017,Accommodation,FINANCE AND COMMERCIAL                                                                              ,BRITISH GAS BUSINESS,BA0000302235,-58.32,684966762,
BEIS,The Insolvency Service,17/01/2017,Accommodation,FINANCE AND COMMERCIAL                                                                              ,BRITISH GAS BUSINESS,BA0000302236,857.67,684966762,
BEIS,The Insolvency Service,17/01/2017,Accommodation,FINANCE AND COMMERCIAL                                                                              ,BRITISH GAS BUSINESS,BA0000302237,-857.67,684966762,
BEIS,The Insolvency Service,17/01/2017,Agency Workers,FINANCE AND COMMERCIAL,BROOK STREET (UK) LTD,BA0000302221,"14,962.28",,
BEIS,The Insolvency Service,17/01/2017,Agency Workers,PROJECTS                                                                                            ,CAPITA BUSINESS SERVICES LTD,BA0000302227,"2,144.11",618184140,
BEIS,The Insolvency Service,17/01/2017,Investigation and Enforcement Costs,INVESTIGATIONS & ENFORCEMENT                                                                        ,CLARKE WILLMOTT SOLICITORS,BA0000302277,236.59,129913060,
BEIS,The Insolvency Service,17/01/2017,Investigation and Enforcement Costs,INVESTIGATIONS & ENFORCEMENT                                                                        ,CLARKE WILLMOTT SOLICITORS,BA0000302278,257.29,129913060,
BEIS,The Insolvency Service,17/01/2017,Insolvency Case Related Costs,INVESTIGATIONS & ENFORCEMENT                                                                        ,COMPANIES HOUSE,BA0000302273,4.00,GD255,
BEIS,The Insolvency Service,17/01/2017,Insolvency Case Related Costs,INVESTIGATIONS & ENFORCEMENT                                                                        ,COMPANIES HOUSE,BA0000302274,30.00,GD255,
BEIS,The Insolvency Service,17/01/2017,Insolvency Case Related Costs,INVESTIGATIONS & ENFORCEMENT                                                                        ,COMPANIES HOUSE,BA0000302275,8.00,GD255,
BEIS,The Insolvency Service,17/01/2017,Insolvency Case Related Costs,INVESTIGATIONS & ENFORCEMENT                                                                        ,COMPANIES HOUSE,BA0000302276,139.00,GD255,
BEIS,The Insolvency Service,17/01/2017,Insolvency Case Related Costs,OFFICIAL RECEIVER SERVICES                                                                          ,COMPANIES HOUSE,BA0000302200,4.00,GD255,
BEIS,The Insolvency Service,17/01/2017,Insolvency Case Related Costs,OFFICIAL RECEIVER SERVICES                                                                          ,COMPANIES HOUSE,BA0000302247,4.00,GD255,
BEIS,The Insolvency Service,17/01/2017,Insolvency Case Related Costs,OFFICIAL RECEIVER SERVICES                                                                          ,COMPANIES HOUSE,BA0000302251,4.00,GD255,
BEIS,The Insolvency Service,17/01/2017,Insolvency Case Related Costs,OFFICIAL RECEIVER SERVICES                                                                          ,COMPANIES HOUSE,BA0000302263,4.00,GD255,
BEIS,The Insolvency Service,17/01/2017,Agency Workers,INFORMATION TECHNOLOGY                                                                              ,CONCEPT INFORMATION TECHNOLOGY LTD                          ,BA0000302243,"2,448.00",776147892,
BEIS,The Insolvency Service,17/01/2017,Agency Workers,INFORMATION TECHNOLOGY                                                                              ,CONCEPT INFORMATION TECHNOLOGY LTD                          ,BA0000302244,"1,560.00",776147892,
BEIS,The Insolvency Service,17/01/2017,Postage,INFORMATION TECHNOLOGY                                                                              ,DX NETWORK SERVICES LTD,BA0000302293,188.17,849741385,
BEIS,The Insolvency Service,17/01/2017,Postage,INFORMATION TECHNOLOGY                                                                              ,DX NETWORK SERVICES LTD,BA0000302293,209.23,849741385,
BEIS,The Insolvency Service,17/01/2017,Postage,OFFICIAL RECEIVER SERVICES                                                                          ,DX NETWORK SERVICES LTD,BA0000302288,-957.60,849741385,
BEIS,The Insolvency Service,17/01/2017,Postage,OFFICIAL RECEIVER SERVICES                                                                          ,DX NETWORK SERVICES LTD,BA0000302289,-339.36,849741385,
BEIS,The Insolvency Service,17/01/2017,Postage,OFFICIAL RECEIVER SERVICES                                                                          ,DX NETWORK SERVICES LTD,BA0000302290,-114.60,849741385,
BEIS,The Insolvency Service,17/01/2017,Postage,OFFICIAL RECEIVER SERVICES                                                                          ,DX NETWORK SERVICES LTD,BA0000302292,-30.00,849741385,
BEIS,The Insolvency Service,17/01/2017,Postage,OFFICIAL RECEIVER SERVICES                                                                          ,DX NETWORK SERVICES LTD,BA0000302293,121.67,849741385,
BEIS,The Insolvency Service,17/01/2017,Postage,OFFICIAL RECEIVER SERVICES                                                                          ,DX NETWORK SERVICES LTD,BA0000302293,121.72,849741385,
BEIS,The Insolvency Service,17/01/2017,Postage,OFFICIAL RECEIVER SERVICES                                                                          ,DX NETWORK SERVICES LTD,BA0000302293,127.28,849741385,
BEIS,The Insolvency Service,17/01/2017,Postage,OFFICIAL RECEIVER SERVICES                                                                          ,DX NETWORK SERVICES LTD,BA0000302293,166.52,849741385,
BEIS,The Insolvency Service,17/01/2017,Postage,OFFICIAL RECEIVER SERVICES                                                                          ,DX NETWORK SERVICES LTD,BA0000302293,195.41,849741385,
BEIS,The Insolvency Service,17/01/2017,Postage,OFFICIAL RECEIVER SERVICES                                                                          ,DX NETWORK SERVICES LTD,BA0000302293,201.86,849741385,
BEIS,The Insolvency Service,17/01/2017,Postage,OFFICIAL RECEIVER SERVICES                                                                          ,DX NETWORK SERVICES LTD,BA0000302293,213.94,849741385,
BEIS,The Insolvency Service,17/01/2017,Postage,OFFICIAL RECEIVER SERVICES                                                                          ,DX NETWORK SERVICES LTD,BA0000302293,218.41,849741385,
BEIS,The Insolvency Service,17/01/2017,Postage,OFFICIAL RECEIVER SERVICES                                                                          ,DX NETWORK SERVICES LTD,BA0000302293,270.62,849741385,
BEIS,The Insolvency Service,17/01/2017,Postage,OFFICIAL RECEIVER SERVICES                                                                          ,DX NETWORK SERVICES LTD,BA0000302293,280.21,849741385,
BEIS,The Insolvency Service,17/01/2017,Postage,OFFICIAL RECEIVER SERVICES                                                                          ,DX NETWORK SERVICES LTD,BA0000302293,300.18,849741385,
BEIS,The Insolvency Service,17/01/2017,Postage,OFFICIAL RECEIVER SERVICES                                                                          ,DX NETWORK SERVICES LTD,BA0000302293,334.65,849741385,
BEIS,The Insolvency Service,17/01/2017,Postage,OFFICIAL RECEIVER SERVICES                                                                          ,DX NETWORK SERVICES LTD,BA0000302293,406.43,849741385,
BEIS,The Insolvency Service,17/01/2017,Postage,OFFICIAL RECEIVER SERVICES                                                                          ,DX NETWORK SERVICES LTD,BA0000302293,447.70,849741385,
BEIS,The Insolvency Service,17/01/2017,Postage,OFFICIAL RECEIVER SERVICES                                                                          ,DX NETWORK SERVICES LTD,BA0000302293,815.67,849741385,
BEIS,The Insolvency Service,17/01/2017,Insolvency Case Related Costs,OFFICIAL RECEIVER SERVICES                                                                          ,FRANK G. BOWEN LTD,BA0000302211,102.00,238504366,
BEIS,The Insolvency Service,17/01/2017,Insolvency Case Related Costs,OFFICIAL RECEIVER SERVICES                                                                          ,FRANK G. BOWEN LTD,BA0000302213,102.00,238504366,
BEIS,The Insolvency Service,17/01/2017,Insolvency Case Related Costs,OFFICIAL RECEIVER SERVICES                                                                          ,FRANK G. BOWEN LTD,BA0000302214,102.00,238504366,
BEIS,The Insolvency Service,17/01/2017,Insolvency Case Related Costs,OFFICIAL RECEIVER SERVICES                                                                          ,FRANK G. BOWEN LTD,BA0000302215,102.00,238504366,
BEIS,The Insolvency Service,17/01/2017,Accommodation,ESTATES,GVA                                                         ,BA0000302201,528.98,657719590,
BEIS,The Insolvency Service,17/01/2017,Accommodation,ESTATES,GVA                                                         ,BA0000302202,537.04,657719590,
BEIS,The Insolvency Service,17/01/2017,Agency Workers,INFORMATION TECHNOLOGY                                                                              ,HAYS SPECIALIST RECRUITMENT LTD,BA0000302252,"1,204.80",773695871,
BEIS,The Insolvency Service,17/01/2017,Employee Related Costs,P&C - People Relations                                                                              ,HEALTH MANAGEMENT LTD,BA0000302257,924.00,792250621,
BEIS,The Insolvency Service,17/01/2017,Employee Related Costs,P&C - People Relations                                                                              ,HEALTH MANAGEMENT LTD,BA0000302256,"1,086.34",792250621,
BEIS,The Insolvency Service,17/01/2017,Insolvency Case Related Costs,OFFICIAL RECEIVER SERVICES                                                                          ,HMCTS,BA0000302165,308.00,,
BEIS,The Insolvency Service,17/01/2017,Investigation and Enforcement Costs,OFFICIAL RECEIVER SERVICES                                                                          ,HMCTS,BA0000302241,280.00,,
BEIS,The Insolvency Service,17/01/2017,Investigation and Enforcement Costs,OFFICIAL RECEIVER SERVICES                                                                          ,HMCTS,BA0000302242,280.00,,
BEIS,The Insolvency Service,17/01/2017,Accommodation,ESTATES,HMRC,BA0000302203,"13,543.57",888848141,
BEIS,The Insolvency Service,17/01/2017,Accommodation,ESTATES,HMRC,BA0000302204,"18,545.22",888848141,
BEIS,The Insolvency Service,17/01/2017,Department for Business Innovation and Skills,PEOPLE & CAPABILITY                                                                                 ,HMRC - Civil Service Resourcing                             ,BA0000302226,"15,274.80",,
BEIS,The Insolvency Service,17/01/2017,Department for Business Innovation and Skills,PEOPLE & CAPABILITY                                                                                 ,HMRC - Civil Service Resourcing                             ,BA0000302223,"-15,274.80",,
BEIS,The Insolvency Service,17/01/2017,Employee Related Costs,PEOPLE & CAPABILITY                                                                                 ,HMRC - Civil Service Resourcing                             ,BA0000302229,"15,055.20",,
BEIS,The Insolvency Service,17/01/2017,Employee Related Costs,PEOPLE & CAPABILITY                                                                                 ,HMRC - Civil Service Resourcing                             ,BA0000302230,525.00,,
BEIS,The Insolvency Service,17/01/2017,Employee Related Costs,PEOPLE & CAPABILITY                                                                                 ,HMRC - Civil Service Resourcing                             ,BA0000302253,100.00,,
BEIS,The Insolvency Service,17/01/2017,Employee Related Costs,PEOPLE & CAPABILITY                                                                                 ,HMRC - Civil Service Resourcing                             ,BA0000302254,125.00,,
BEIS,The Insolvency Service,17/01/2017,Training Costs,PEOPLE & CAPABILITY                                                                                 ,Kirsti Davies - Community Arts and Environmental Education  ,BA0000302239,586.10,,
BEIS,The Insolvency Service,17/01/2017,Office Supplies and Services,OFFICIAL RECEIVER SERVICES                                                                          ,LEXISNEXIS UK (LEXISNEXIS BUTTERWORTHS),BA0000302287,209.51,730859520,
BEIS,The Insolvency Service,17/01/2017,Office Supplies and Services,FINANCE AND COMMERCIAL                                                                              ,NEOPOST LIMITED (CONSUMABLES),BA0000302271,439.18,597265489,
BEIS,The Insolvency Service,17/01/2017,Office Supplies and Services,OFFICIAL RECEIVER SERVICES                                                                          ,NEOPOST LIMITED (CONSUMABLES),BA0000302269,228.59,597265489,
BEIS,The Insolvency Service,17/01/2017,Office Supplies and Services,OFFICIAL RECEIVER SERVICES                                                                          ,NEOPOST LIMITED (CONSUMABLES),BA0000302270,180.00,597265489,
BEIS,The Insolvency Service,17/01/2017,Postage,OFFICIAL RECEIVER SERVICES                                                                          ,NEOPOST LTD - FRANKING TOP UPS,BA0000302282,500.00,,
BEIS,The Insolvency Service,17/01/2017,Postage,OFFICIAL RECEIVER SERVICES                                                                          ,NEOPOST LTD - FRANKING TOP UPS,BA0000302282,500.00,,
BEIS,The Insolvency Service,17/01/2017,Postage,OFFICIAL RECEIVER SERVICES                                                                          ,NEOPOST LTD - FRANKING TOP UPS,BA0000302282,500.00,,
BEIS,The Insolvency Service,17/01/2017,Postage,OFFICIAL RECEIVER SERVICES                                                                          ,NEOPOST LTD - FRANKING TOP UPS,BA0000302282,"1,000.00",,
BEIS,The Insolvency Service,17/01/2017,Postage,OFFICIAL RECEIVER SERVICES                                                                          ,NEOPOST LTD - FRANKING TOP UPS,BA0000302282,"1,000.00",,
BEIS,The Insolvency Service,17/01/2017,Postage,OFFICIAL RECEIVER SERVICES                                                                          ,NEOPOST LTD - FRANKING TOP UPS,BA0000302282,"1,000.00",,
BEIS,The Insolvency Service,17/01/2017,Postage,OFFICIAL RECEIVER SERVICES                                                                          ,NEOPOST LTD - FRANKING TOP UPS,BA0000302282,"1,000.00",,
BEIS,The Insolvency Service,17/01/2017,Postage,OFFICIAL RECEIVER SERVICES                                                                          ,NEOPOST LTD - FRANKING TOP UPS,BA0000302282,"1,000.00",,
BEIS,The Insolvency Service,17/01/2017,Training Costs,INFORMATION TECHNOLOGY                                                                              ,QA LIMITED,BA0000302262,"1,095.00",,
BEIS,The Insolvency Service,17/01/2017,Investigation and Enforcement Costs,INVESTIGATIONS & ENFORCEMENT                                                                        ,RAQJAN KAYPEE                                               ,BA0000302143,730.25,,
BEIS,The Insolvency Service,17/01/2017,Postage,FINANCE AND COMMERCIAL                                                                              ,ROYAL MAIL GROUP LTD - RESPONSE SERVICES)                   ,BA0000302205,88.29,243170002,
BEIS,The Insolvency Service,17/01/2017,Postage,FINANCE AND COMMERCIAL                                                                              ,ROYAL MAIL GROUP LTD - RESPONSE SERVICES)                   ,BA0000302258,-14.16,243170002,
BEIS,The Insolvency Service,17/01/2017,Insolvency Case Related Costs,OFFICIAL RECEIVER SERVICES                                                                          ,ROYAL MAIL GROUP LTD - RESPONSE SERVICES)                   ,BA0000302207,8.18,243170002,
BEIS,The Insolvency Service,17/01/2017,Accommodation,OFFICIAL RECEIVER SERVICES                                                                          ,SHEFFIELD CITY COUNCIL,BA0000302225,"1,750.00",,
BEIS,The Insolvency Service,17/01/2017,Investigation and Enforcement Costs,INVESTIGATIONS & ENFORCEMENT                                                                        ,SHEPHERD & WEDDERBURN WS (ENGLISH CASES)                    ,BA0000302280,"7,594.16",890559386,
BEIS,The Insolvency Service,17/01/2017,Investigation and Enforcement Costs,INVESTIGATIONS & ENFORCEMENT                                                                        ,SHEPHERD & WEDDERBURN WS (ENGLISH CASES)                    ,BA0000302279,888.00,890559386,
BEIS,The Insolvency Service,17/01/2017,Investigation and Enforcement Costs,INVESTIGATIONS & ENFORCEMENT                                                                        ,SHEPHERD & WEDDERBURN WS (ENGLISH CASES)                    ,BA0000302279,"26,350.61",890559386,
BEIS,The Insolvency Service,17/01/2017,Investigation and Enforcement Costs,INVESTIGATIONS & ENFORCEMENT                                                                        ,SHEPHERD & WEDDERBURN WS (ENGLISH CASES)                    ,BA0000302279,768.83,890559386,
BEIS,The Insolvency Service,17/01/2017,Investigation and Enforcement Costs,INVESTIGATIONS & ENFORCEMENT                                                                        ,SHEPHERD & WEDDERBURN WS (ENGLISH CASES)                    ,BA0000302279,183.25,890559386,
BEIS,The Insolvency Service,17/01/2017,Investigation and Enforcement Costs,INVESTIGATIONS & ENFORCEMENT                                                                        ,SHEPHERD & WEDDERBURN WS (ENGLISH CASES)                    ,BA0000302279,"2,466.23",890559386,
BEIS,The Insolvency Service,17/01/2017,Investigation and Enforcement Costs,INVESTIGATIONS & ENFORCEMENT                                                                        ,SHEPHERD & WEDDERBURN WS (SCOTTISH CASES)                   ,BA0000302281,"5,748.85",890559386,
BEIS,The Insolvency Service,17/01/2017,Investigation and Enforcement Costs,INVESTIGATIONS & ENFORCEMENT                                                                        ,SHEPHERD & WEDDERBURN WS (SCOTTISH CASES)                   ,BA0000302281,"1,742.00",890559386,
BEIS,The Insolvency Service,17/01/2017,Investigation and Enforcement Costs,INVESTIGATIONS & ENFORCEMENT                                                                        ,SHEPHERD & WEDDERBURN WS (SCOTTISH CASES)                   ,BA0000302281,"2,115.36",890559386,
BEIS,The Insolvency Service,17/01/2017,Employee Related Costs,FINANCE AND COMMERCIAL                                                                              ,SPECSAVERS OPTICAL GROUP                                    ,BA0000302206,248.00,520011330,
BEIS,The Insolvency Service,17/01/2017,Travel and Subsistence,EXTERNAL AFFAIRS                                                                                    ,Staff Payment,BA0000302246,449.99,,
BEIS,The Insolvency Service,17/01/2017,Travel and Subsistence,BUSINESS SERVICES DIRECTORATE                                                                       ,Staff Payment,BA0000302246,88.00,,
BEIS,The Insolvency Service,17/01/2017,Travel and Subsistence,INFORMATION TECHNOLOGY                                                                              ,Staff Payment,BA0000302246,21.00,,
BEIS,The Insolvency Service,17/01/2017,Travel and Subsistence,INVESTIGATIONS & ENFORCEMENT                                                                        ,Staff Payment,BA0000302246,95.00,,
BEIS,The Insolvency Service,17/01/2017,Travel and Subsistence,INVESTIGATIONS & ENFORCEMENT                                                                        ,Staff Payment,BA0000302246,5.60,,
BEIS,The Insolvency Service,17/01/2017,Travel and Subsistence,BUSINESS SERVICES DIRECTORATE                                                                       ,Staff Payment,BA0000302246,6.50,,
BEIS,The Insolvency Service,17/01/2017,Travel and Subsistence,BUSINESS SERVICES DIRECTORATE                                                                       ,Staff Payment,BA0000302246,76.50,,
BEIS,The Insolvency Service,17/01/2017,Travel and Subsistence,BUSINESS SERVICES DIRECTORATE                                                                       ,Staff Payment,BA0000302246,5.50,,
BEIS,The Insolvency Service,17/01/2017,Travel and Subsistence,BUSINESS SERVICES DIRECTORATE                                                                       ,Staff Payment,BA0000302246,138.15,,
BEIS,The Insolvency Service,17/01/2017,Travel and Subsistence,BUSINESS SERVICES DIRECTORATE                                                                       ,Staff Payment,BA0000302246,122.40,,
BEIS,The Insolvency Service,17/01/2017,Travel and Subsistence,BUSINESS SERVICES DIRECTORATE                                                                       ,Staff Payment,BA0000302246,12.00,,
BEIS,The Insolvency Service,17/01/2017,Travel and Subsistence,EXTERNAL AFFAIRS                                                                                    ,Staff Payment,BA0000302246,52.20,,
BEIS,The Insolvency Service,17/01/2017,Travel and Subsistence,INVESTIGATIONS & ENFORCEMENT                                                                        ,Staff Payment,BA0000302246,43.20,,
BEIS,The Insolvency Service,17/01/2017,Travel and Subsistence,INVESTIGATIONS & ENFORCEMENT                                                                        ,Staff Payment,BA0000302246,21.60,,
BEIS,The Insolvency Service,17/01/2017,Travel and Subsistence,INVESTIGATIONS & ENFORCEMENT                                                                        ,Staff Payment,BA0000302246,45.90,,
BEIS,The Insolvency Service,17/01/2017,Travel and Subsistence,OFFICIAL RECEIVER SERVICES                                                                          ,Staff Payment,BA0000302246,2.00,,
BEIS,The Insolvency Service,17/01/2017,Travel and Subsistence,OFFICIAL RECEIVER SERVICES                                                                          ,Staff Payment,BA0000302246,5.40,,
BEIS,The Insolvency Service,17/01/2017,Travel and Subsistence,OFFICIAL RECEIVER SERVICES                                                                          ,Staff Payment,BA0000302246,33.00,,
BEIS,The Insolvency Service,17/01/2017,Travel and Subsistence,OFFICIAL RECEIVER SERVICES                                                                          ,Staff Payment,BA0000302246,6.90,,
BEIS,The Insolvency Service,17/01/2017,Travel and Subsistence,OFFICIAL RECEIVER SERVICES                                                                          ,Staff Payment,BA0000302246,90.90,,
BEIS,The Insolvency Service,17/01/2017,Travel and Subsistence,OFFICIAL RECEIVER SERVICES                                                                          ,Staff Payment,BA0000302246,3.00,,
BEIS,The Insolvency Service,17/01/2017,Travel and Subsistence,OFFICIAL RECEIVER SERVICES                                                                          ,Staff Payment,BA0000302246,18.90,,
BEIS,The Insolvency Service,17/01/2017,Travel and Subsistence,OFFICIAL RECEIVER SERVICES                                                                          ,Staff Payment,BA0000302246,1.20,,
BEIS,The Insolvency Service,17/01/2017,Travel and Subsistence,OFFICIAL RECEIVER SERVICES                                                                          ,Staff Payment,BA0000302246,40.95,,
BEIS,The Insolvency Service,17/01/2017,Travel and Subsistence,OFFICIAL RECEIVER SERVICES                                                                          ,Staff Payment,BA0000302246,8.00,,
BEIS,The Insolvency Service,17/01/2017,Travel and Subsistence,OFFICIAL RECEIVER SERVICES                                                                          ,Staff Payment,BA0000302246,61.00,,
BEIS,The Insolvency Service,17/01/2017,Travel and Subsistence,OFFICIAL RECEIVER SERVICES                                                                          ,Staff Payment,BA0000302246,3.00,,
BEIS,The Insolvency Service,17/01/2017,Travel and Subsistence,OFFICIAL RECEIVER SERVICES                                                                          ,Staff Payment,BA0000302246,6.30,,
BEIS,The Insolvency Service,17/01/2017,Travel and Subsistence,OFFICIAL RECEIVER SERVICES                                                                          ,Staff Payment,BA0000302246,3.46,,
BEIS,The Insolvency Service,17/01/2017,Travel and Subsistence,OFFICIAL RECEIVER SERVICES                                                                          ,Staff Payment,BA0000302246,47.70,,
BEIS,The Insolvency Service,17/01/2017,Travel and Subsistence,OFFICIAL RECEIVER SERVICES                                                                          ,Staff Payment,BA0000302246,3.30,,
BEIS,The Insolvency Service,17/01/2017,Travel and Subsistence,OFFICIAL RECEIVER SERVICES                                                                          ,Staff Payment,BA0000302246,47.25,,
BEIS,The Insolvency Service,17/01/2017,Travel and Subsistence,BUSINESS SERVICES DIRECTORATE                                                                       ,Staff Payment,BA0000302246,24.07,,
BEIS,The Insolvency Service,17/01/2017,Travel and Subsistence,BUSINESS SERVICES DIRECTORATE                                                                       ,Staff Payment,BA0000302246,4.20,,
BEIS,The Insolvency Service,17/01/2017,Travel and Subsistence,BUSINESS SERVICES DIRECTORATE                                                                       ,Staff Payment,BA0000302246,29.58,,
BEIS,The Insolvency Service,17/01/2017,Travel and Subsistence,BUSINESS SERVICES DIRECTORATE                                                                       ,Staff Payment,BA0000302246,5.00,,
BEIS,The Insolvency Service,17/01/2017,Travel and Subsistence,BUSINESS SERVICES DIRECTORATE                                                                       ,Staff Payment,BA0000302246,24.98,,
BEIS,The Insolvency Service,17/01/2017,Travel and Subsistence,BUSINESS SERVICES DIRECTORATE                                                                       ,Staff Payment,BA0000302246,4.35,,
BEIS,The Insolvency Service,17/01/2017,Travel and Subsistence,INVESTIGATIONS & ENFORCEMENT                                                                        ,Staff Payment,BA0000302246,5.00,,
BEIS,The Insolvency Service,17/01/2017,Travel and Subsistence,INVESTIGATIONS & ENFORCEMENT                                                                        ,Staff Payment,BA0000302246,23.20,,
BEIS,The Insolvency Service,17/01/2017,Travel and Subsistence,OFFICIAL RECEIVER SERVICES                                                                          ,Staff Payment,BA0000302246,62.67,,
BEIS,The Insolvency Service,17/01/2017,Travel and Subsistence,OFFICIAL RECEIVER SERVICES                                                                          ,Staff Payment,BA0000302246,3.99,,
BEIS,The Insolvency Service,17/01/2017,Postage,INVESTIGATIONS & ENFORCEMENT                                                                        ,TNT UK LTD,BA0000302220,17.16,354715057,
BEIS,The Insolvency Service,17/01/2017,Postage,INVESTIGATIONS & ENFORCEMENT                                                                        ,TNT UK LTD,BA0000302272,25.97,354715057,
BEIS,The Insolvency Service,17/01/2017,Telecoms,INFORMATION TECHNOLOGY                                                                              ,VODAFONE - CABLE & WIRELESS COMMUNICATIONS,BA0000302238,585.40,232303710,
BEIS,The Insolvency Service,17/01/2017,Telecoms,INFORMATION TECHNOLOGY                                                                              ,VODAFONE - CABLE & WIRELESS COMMUNICATIONS,BA0000302283,241.90,232303710,
BEIS,The Insolvency Service,17/01/2017,Telecoms,INFORMATION TECHNOLOGY                                                                              ,VODAFONE - CABLE & WIRELESS COMMUNICATIONS,BA0000302284,240.90,232303710,
BEIS,The Insolvency Service,17/01/2017,Telecoms,INFORMATION TECHNOLOGY                                                                              ,VODAFONE - CABLE & WIRELESS COMMUNICATIONS,BA0000302285,"7,336.44",232303710,
BEIS,The Insolvency Service,17/01/2017,Telecoms,INFORMATION TECHNOLOGY                                                                              ,VODAFONE CORPORATE LTD,BA0000302245,108.00,569953277,
BEIS,The Insolvency Service,17/01/2017,Telecoms,INFORMATION TECHNOLOGY                                                                              ,VODAFONE CORPORATE LTD,BA0000302249,388.80,569953277,
BEIS,The Insolvency Service,17/01/2017,Telecoms,INFORMATION TECHNOLOGY                                                                              ,VODAFONE CORPORATE LTD,BA0000302250,237.60,569953277,
BEIS,The Insolvency Service,18/01/2017,Accommodation,ESTATES,BIS - DEPT. FOR BUSINESS INNOVATION & SKILLS,BA0000302343,"55,695.53",888825550,
BEIS,The Insolvency Service,18/01/2017,Postage,INFORMATION TECHNOLOGY                                                                              ,BIS - DEPT. FOR BUSINESS INNOVATION & SKILLS,BA0000302335,"1,354.12",888825550,
BEIS,The Insolvency Service,18/01/2017,Investigation and Enforcement Costs,INVESTIGATIONS & ENFORCEMENT                                                                        ,BTG GLOBAL RISK PARTNERS,BA0000302336,"61,800.00",880996072,
BEIS,The Insolvency Service,18/01/2017,Training Costs,FINANCE AND COMMERCIAL                                                                              ,CAPITA BUSINESS SERVICES LTD,BA0000302339,-253.75,618184140,
BEIS,The Insolvency Service,18/01/2017,Training Costs,FINANCE AND COMMERCIAL                                                                              ,CAPITA BUSINESS SERVICES LTD,BA0000302340,253.75,618184140,
BEIS,The Insolvency Service,18/01/2017,Training Costs,FINANCE AND COMMERCIAL,CAPITA BUSINESS SERVICES LTD,BA0000302353,352.62,618184140,
BEIS,The Insolvency Service,18/01/2017,Investigation and Enforcement Costs,INVESTIGATIONS & ENFORCEMENT                                                                        ,DWF                                                         ,BA0000302331,"17,635.17",,
BEIS,The Insolvency Service,18/01/2017,Investigation and Enforcement Costs,INVESTIGATIONS & ENFORCEMENT                                                                        ,DWF                                                         ,BA0000302326,"19,788.06",,
BEIS,The Insolvency Service,18/01/2017,Investigation and Enforcement Costs,INVESTIGATIONS & ENFORCEMENT                                                                        ,DWF                                                         ,BA0000302333,"1,271.70",,
BEIS,The Insolvency Service,18/01/2017,Investigation and Enforcement Costs,INVESTIGATIONS & ENFORCEMENT                                                                        ,DWF                                                         ,BA0000302332,709.85,,
BEIS,The Insolvency Service,18/01/2017,Investigation and Enforcement Costs,INVESTIGATIONS & ENFORCEMENT                                                                        ,DWF                                                         ,BA0000302325,"7,780.00",,
BEIS,The Insolvency Service,18/01/2017,Investigation and Enforcement Costs,INVESTIGATIONS & ENFORCEMENT                                                                        ,DWF                                                         ,BA0000302330,"1,906.50",,
BEIS,The Insolvency Service,18/01/2017,Investigation and Enforcement Costs,INVESTIGATIONS & ENFORCEMENT                                                                        ,DWF                                                         ,BA0000302334,"1,202.60",,
BEIS,The Insolvency Service,18/01/2017,Legal Costs,OFFICIAL RECEIVER SERVICES                                                                          ,GOVERNMENT LEGAL DEPARTMENT                                 ,BA0000302355,162.00,888823066,
BEIS,The Insolvency Service,18/01/2017,Investigation and Enforcement Costs,INVESTIGATIONS & ENFORCEMENT                                                                        ,GOWLING WRAGGE LAWRENCE GRAHAM  & CO                        ,BA0000302316,"30,922.28",858698838,
BEIS,The Insolvency Service,18/01/2017,Investigation and Enforcement Costs,INVESTIGATIONS & ENFORCEMENT                                                                        ,GOWLING WRAGGE LAWRENCE GRAHAM  & CO                        ,BA0000302318,"2,079.00",858698838,
BEIS,The Insolvency Service,18/01/2017,Investigation and Enforcement Costs,INVESTIGATIONS & ENFORCEMENT                                                                        ,GOWLING WRAGGE LAWRENCE GRAHAM  & CO                        ,BA0000302315,"8,682.35",858698838,
BEIS,The Insolvency Service,18/01/2017,Investigation and Enforcement Costs,INVESTIGATIONS & ENFORCEMENT                                                                        ,GOWLING WRAGGE LAWRENCE GRAHAM  & CO                        ,BA0000302317,"8,800.25",858698838,
BEIS,The Insolvency Service,18/01/2017,Accommodation,ESTATES,GVA                                                         ,BA0000302341,630.15,657719590,
BEIS,The Insolvency Service,18/01/2017,Agency Workers,INFORMATION TECHNOLOGY                                                                              ,HAYS SPECIALIST RECRUITMENT LTD,BA0000302350,"2,409.60",773695871,
BEIS,The Insolvency Service,18/01/2017,Agency Workers,INFORMATION TECHNOLOGY                                                                              ,HAYS SPECIALIST RECRUITMENT LTD,BA0000302352,"2,409.60",773695871,
BEIS,The Insolvency Service,18/01/2017,Investigation and Enforcement Costs,OFFICIAL RECEIVER SERVICES                                                                          ,HMCTS,BA0000302347,528.00,,
BEIS,The Insolvency Service,18/01/2017,Investigation and Enforcement Costs,OFFICIAL RECEIVER SERVICES                                                                          ,HMCTS,BA0000302349,50.00,,
BEIS,The Insolvency Service,18/01/2017,Investigation and Enforcement Costs,OFFICIAL RECEIVER SERVICES                                                                          ,HMCTS,BA0000302348,308.00,,
BEIS,The Insolvency Service,18/01/2017,Investigation and Enforcement Costs,INVESTIGATIONS & ENFORCEMENT                                                                        ,HOWES PERCIVAL,BA0000302306,"23,340.00",119523573,
BEIS,The Insolvency Service,18/01/2017,Investigation and Enforcement Costs,INVESTIGATIONS & ENFORCEMENT                                                                        ,HOWES PERCIVAL,BA0000302308,"12,839.40",119523573,
BEIS,The Insolvency Service,18/01/2017,Investigation and Enforcement Costs,INVESTIGATIONS & ENFORCEMENT                                                                        ,HOWES PERCIVAL,BA0000302309,"4,329.70",119523573,
BEIS,The Insolvency Service,18/01/2017,Investigation and Enforcement Costs,INVESTIGATIONS & ENFORCEMENT                                                                        ,HOWES PERCIVAL,BA0000302310,"12,547.00",119523573,
BEIS,The Insolvency Service,18/01/2017,Investigation and Enforcement Costs,INVESTIGATIONS & ENFORCEMENT                                                                        ,HOWES PERCIVAL,BA0000302311,"30,543.49",119523573,
BEIS,The Insolvency Service,18/01/2017,Investigation and Enforcement Costs,INVESTIGATIONS & ENFORCEMENT                                                                        ,HOWES PERCIVAL,BA0000302320,"4,130.40",119523573,
BEIS,The Insolvency Service,18/01/2017,Investigation and Enforcement Costs,INVESTIGATIONS & ENFORCEMENT                                                                        ,HOWES PERCIVAL,BA0000302314,"3,441.40",119523573,
BEIS,The Insolvency Service,18/01/2017,Investigation and Enforcement Costs,INVESTIGATIONS & ENFORCEMENT                                                                        ,HOWES PERCIVAL,BA0000302307,51.80,119523573,
BEIS,The Insolvency Service,18/01/2017,Investigation and Enforcement Costs,INVESTIGATIONS & ENFORCEMENT                                                                        ,HOWES PERCIVAL,BA0000302312,514.65,119523573,
BEIS,The Insolvency Service,18/01/2017,Investigation and Enforcement Costs,INVESTIGATIONS & ENFORCEMENT                                                                        ,HOWES PERCIVAL,BA0000302313,"7,780.00",119523573,
BEIS,The Insolvency Service,18/01/2017,Investigation and Enforcement Costs,INVESTIGATIONS & ENFORCEMENT                                                                        ,MARSTON GROUP LIMITED                                       ,BA0000302337,132.00,795928947,
BEIS,The Insolvency Service,18/01/2017,Accommodation,ESTATES,MIDDLESBROUGH COUNCIL                                       ,BA0000302338,344.70,734213854,
BEIS,The Insolvency Service,18/01/2017,Employee Related Costs,BUSINESS SERVICES DIRECTORATE                                                                       ,POSTURITE (UK) LTD.,BA0000302344,316.34,,
BEIS,The Insolvency Service,18/01/2017,Employee Related Costs,BUSINESS SERVICES DIRECTORATE                                                                       ,POSTURITE (UK) LTD.,BA0000302345,45.90,,
BEIS,The Insolvency Service,18/01/2017,Employee Related Costs,BUSINESS SERVICES DIRECTORATE                                                                       ,POSTURITE (UK) LTD.,BA0000302346,978.18,,
BEIS,The Insolvency Service,18/01/2017,Travel and Subsistence,FINANCE AND COMMERCIAL,Staff Payment,BA0000302354,72.30,,
BEIS,The Insolvency Service,18/01/2017,Travel and Subsistence,FINANCE AND COMMERCIAL,Staff Payment,BA0000302354,160.65,,
BEIS,The Insolvency Service,18/01/2017,Travel and Subsistence,P&C - Talent                                                                                        ,Staff Payment,BA0000302354,20.00,,
BEIS,The Insolvency Service,18/01/2017,Travel and Subsistence,FINANCE AND COMMERCIAL,Staff Payment,BA0000302354,30.40,,
BEIS,The Insolvency Service,18/01/2017,Travel and Subsistence,P&C - Talent                                                                                        ,Staff Payment,BA0000302354,28.35,,
BEIS,The Insolvency Service,18/01/2017,Travel and Subsistence,BUSINESS SERVICES DIRECTORATE                                                                       ,Staff Payment,BA0000302354,32.50,,
BEIS,The Insolvency Service,18/01/2017,Travel and Subsistence,BUSINESS SERVICES DIRECTORATE                                                                       ,Staff Payment,BA0000302354,58.85,,
BEIS,The Insolvency Service,18/01/2017,Travel and Subsistence,INVESTIGATIONS & ENFORCEMENT                                                                        ,Staff Payment,BA0000302354,18.90,,
BEIS,The Insolvency Service,18/01/2017,Travel and Subsistence,INVESTIGATIONS & ENFORCEMENT                                                                        ,Staff Payment,BA0000302354,45.90,,
BEIS,The Insolvency Service,18/01/2017,Travel and Subsistence,OFFICIAL RECEIVER SERVICES                                                                          ,Staff Payment,BA0000302354,397.35,,
BEIS,The Insolvency Service,18/01/2017,Travel and Subsistence,OFFICIAL RECEIVER SERVICES                                                                          ,Staff Payment,BA0000302354,9.90,,
BEIS,The Insolvency Service,18/01/2017,Travel and Subsistence,OFFICIAL RECEIVER SERVICES                                                                          ,Staff Payment,BA0000302354,11.50,,
BEIS,The Insolvency Service,18/01/2017,Travel and Subsistence,OFFICIAL RECEIVER SERVICES                                                                          ,Staff Payment,BA0000302354,14.50,,
BEIS,The Insolvency Service,18/01/2017,Travel and Subsistence,OFFICIAL RECEIVER SERVICES                                                                          ,Staff Payment,BA0000302354,14.50,,
BEIS,The Insolvency Service,18/01/2017,Travel and Subsistence,BUSINESS SERVICES DIRECTORATE                                                                       ,Staff Payment,BA0000302354,28.27,,
BEIS,The Insolvency Service,18/01/2017,Travel and Subsistence,INVESTIGATIONS & ENFORCEMENT                                                                        ,Staff Payment,BA0000302354,2.45,,
BEIS,The Insolvency Service,18/01/2017,Travel and Subsistence,OFFICIAL RECEIVER SERVICES                                                                          ,Staff Payment,BA0000302354,7.40,,
BEIS,The Insolvency Service,18/01/2017,Travel and Subsistence,OFFICIAL RECEIVER SERVICES                                                                          ,Staff Payment,BA0000302354,5.00,,
BEIS,The Insolvency Service,18/01/2017,Training Costs,INFORMATION TECHNOLOGY                                                                              ,THE KNOWLEDGE ACADEMY LIMITED                               ,BA0000302357,"1,595.00",,
BEIS,The Insolvency Service,18/01/2017,Postage,FINANCE AND COMMERCIAL                                                                              ,TNT UK LTD,BA0000302322,8.58,354715057,
BEIS,The Insolvency Service,18/01/2017,Office Supplies and Services,FINANCE AND COMMERCIAL                                                                              ,WILLIAMS LEA LTD,BA0000302328,"1,108.80",662774703,
BEIS,The Insolvency Service,18/01/2017,Office Supplies and Services,BUSINESS SERVICES DIRECTORATE                                                                       ,XMA LTD,BA0000302323,636.00,115091937,
BEIS,The Insolvency Service,18/01/2017,Office Supplies and Services,FINANCE AND COMMERCIAL                                                                              ,XMA LTD,BA0000302323,192.65,115091937,
BEIS,The Insolvency Service,19/01/2017,Investigation and Enforcement Costs,INVESTIGATIONS & ENFORCEMENT                                                                        ,BOND DICKINSON                                              ,BA0000302396,"5,000.00",123392627,
BEIS,The Insolvency Service,19/01/2017,Employee Related Costs,PEOPLE & CAPABILITY                                                                                 ,DISCLOSURE SCOTLAND,BA0000302397,175.00,,
BEIS,The Insolvency Service,20/01/2017,Agency Workers,PROJECTS                                                                                            ,ALLEN LANE CONSULTANCY                                      ,BA0000302366,"81,664.80",,
BEIS,The Insolvency Service,20/01/2017,Conferences,STRATEGY                                                                                            ,BIS - DEPT. FOR BUSINESS INNOVATION & SKILLS,BA0000302383,600.00,888825550,
BEIS,The Insolvency Service,20/01/2017,Agency Workers,FINANCE AND COMMERCIAL,BROOK STREET (UK) LTD,BA0000302369,"18,695.19",,
BEIS,The Insolvency Service,20/01/2017,Insolvency Case Related Costs,OFFICIAL RECEIVER SERVICES                                                                          ,COMPANIES HOUSE,BA0000302365,4.00,GD255,
BEIS,The Insolvency Service,20/01/2017,Agency Workers,INFORMATION TECHNOLOGY                                                                              ,CONCEPT INFORMATION TECHNOLOGY LTD                          ,BA0000302380,"1,950.00",776147892,
BEIS,The Insolvency Service,20/01/2017,Agency Workers,INFORMATION TECHNOLOGY                                                                              ,CONCEPT INFORMATION TECHNOLOGY LTD                          ,BA0000302381,"3,060.00",776147892,
BEIS,The Insolvency Service,20/01/2017,Legal Costs,OFFICIAL RECEIVER SERVICES                                                                          ,GOVERNMENT LEGAL DEPARTMENT                                 ,BA0000302377,122.88,888823066,
BEIS,The Insolvency Service,20/01/2017,Agency Workers,INFORMATION TECHNOLOGY                                                                              ,HAYS SPECIALIST RECRUITMENT LTD,BA0000302368,"3,012.00",773695871,
BEIS,The Insolvency Service,20/01/2017,Accommodation,ESTATES,JONES LANG LASALLE,BA0000302376,"5,850.00",245894718,
BEIS,The Insolvency Service,20/01/2017,Telecoms,OFFICIAL RECEIVER SERVICES                                                                          ,KCOM GROUP PLC,BA0000302372,72.00,647235137,
BEIS,The Insolvency Service,20/01/2017,Telecoms,OFFICIAL RECEIVER SERVICES                                                                          ,KCOM GROUP PLC,BA0000302371,-11.04,647235137,
BEIS,The Insolvency Service,20/01/2017,Training Costs,FINANCE AND COMMERCIAL,KYPERA LTD,BA0000302384,"1,041.08",813905437,
BEIS,The Insolvency Service,20/01/2017,Training Costs,FINANCE AND COMMERCIAL,KYPERA LTD,BA0000302385,930.70,813905437,
BEIS,The Insolvency Service,20/01/2017,Telecoms,INFORMATION TECHNOLOGY                                                                              ,MAINTEL                                                     ,BA0000302379,"4,914.46",,
BEIS,The Insolvency Service,20/01/2017,Training Costs,PEOPLE & CAPABILITY                                                                                 ,MIDLANDS FRAUD FORUM,BA0000302367,130.00,,
BEIS,The Insolvency Service,20/01/2017,Employee Related Costs,OFFICIAL RECEIVER SERVICES                                                                          ,ONLINE ERGONOMICS,BA0000302382,51.60,807348719,
BEIS,The Insolvency Service,20/01/2017,Employee Related Costs,OFFICIAL RECEIVER SERVICES                                                                          ,ONLINE ERGONOMICS,BA0000302382,83.70,807348719,
BEIS,The Insolvency Service,20/01/2017,Employee Related Costs,OFFICIAL RECEIVER SERVICES                                                                          ,ONLINE ERGONOMICS,BA0000302382,96.00,807348719,
BEIS,The Insolvency Service,20/01/2017,Employee Related Costs,OFFICIAL RECEIVER SERVICES                                                                          ,ONLINE ERGONOMICS,BA0000302382,399.90,807348719,
BEIS,The Insolvency Service,20/01/2017,Training Costs,INFORMATION TECHNOLOGY                                                                              ,QA LIMITED,BA0000302358,"1,303.80",,
BEIS,The Insolvency Service,20/01/2017,Travel and Subsistence,INVESTIGATIONS & ENFORCEMENT                                                                        ,Staff Payment,BA0000302370,16.50,,
BEIS,The Insolvency Service,20/01/2017,Travel and Subsistence,INVESTIGATIONS & ENFORCEMENT                                                                        ,Staff Payment,BA0000302370,9.50,,
BEIS,The Insolvency Service,20/01/2017,Travel and Subsistence,OFFICIAL RECEIVER SERVICES                                                                          ,Staff Payment,BA0000302370,6.00,,
BEIS,The Insolvency Service,20/01/2017,Travel and Subsistence,OFFICIAL RECEIVER SERVICES                                                                          ,Staff Payment,BA0000302370,7.30,,
BEIS,The Insolvency Service,20/01/2017,Travel and Subsistence,OFFICIAL RECEIVER SERVICES                                                                          ,Staff Payment,BA0000302370,4.80,,
BEIS,The Insolvency Service,20/01/2017,Travel and Subsistence,INVESTIGATIONS & ENFORCEMENT                                                                        ,Staff Payment,BA0000302370,1.00,,
BEIS,The Insolvency Service,20/01/2017,Travel and Subsistence,OFFICIAL RECEIVER SERVICES                                                                          ,Staff Payment,BA0000302370,191.25,,
BEIS,The Insolvency Service,20/01/2017,Travel and Subsistence,OFFICIAL RECEIVER SERVICES                                                                          ,Staff Payment,BA0000302370,2.40,,
BEIS,The Insolvency Service,20/01/2017,Travel and Subsistence,OFFICIAL RECEIVER SERVICES                                                                          ,Staff Payment,BA0000302370,23.40,,
BEIS,The Insolvency Service,20/01/2017,Travel and Subsistence,OFFICIAL RECEIVER SERVICES                                                                          ,Staff Payment,BA0000302370,4.50,,
BEIS,The Insolvency Service,20/01/2017,Travel and Subsistence,OFFICIAL RECEIVER SERVICES                                                                          ,Staff Payment,BA0000302370,36.00,,
BEIS,The Insolvency Service,20/01/2017,Travel and Subsistence,PEOPLE & CAPABILITY                                                                                 ,Staff Payment,BA0000302370,25.65,,
BEIS,The Insolvency Service,20/01/2017,Travel and Subsistence,INVESTIGATIONS & ENFORCEMENT                                                                        ,Staff Payment,BA0000302370,24.60,,
BEIS,The Insolvency Service,20/01/2017,Travel and Subsistence,INVESTIGATIONS & ENFORCEMENT                                                                        ,Staff Payment,BA0000302370,5.00,,
BEIS,The Insolvency Service,20/01/2017,Travel and Subsistence,INVESTIGATIONS & ENFORCEMENT                                                                        ,Staff Payment,BA0000302370,5.00,,
BEIS,The Insolvency Service,20/01/2017,Travel and Subsistence,OFFICIAL RECEIVER SERVICES                                                                          ,Staff Payment,BA0000302370,8.60,,
BEIS,The Insolvency Service,20/01/2017,Travel and Subsistence,OFFICIAL RECEIVER SERVICES                                                                          ,Staff Payment,BA0000302370,74.58,,
BEIS,The Insolvency Service,20/01/2017,Travel and Subsistence,OFFICIAL RECEIVER SERVICES                                                                          ,Staff Payment,BA0000302370,5.00,,
BEIS,The Insolvency Service,20/01/2017,Travel and Subsistence,OFFICIAL RECEIVER SERVICES                                                                          ,Staff Payment,BA0000302370,44.84,,
BEIS,The Insolvency Service,20/01/2017,Travel and Subsistence,OFFICIAL RECEIVER SERVICES                                                                          ,Staff Payment,BA0000302370,51.70,,
BEIS,The Insolvency Service,20/01/2017,Travel and Subsistence,PEOPLE & CAPABILITY                                                                                 ,Staff Payment,BA0000302370,10.00,,
BEIS,The Insolvency Service,20/01/2017,Travel and Subsistence,PEOPLE & CAPABILITY                                                                                 ,Staff Payment,BA0000302370,5.00,,
BEIS,The Insolvency Service,20/01/2017,Travel and Subsistence,PEOPLE & CAPABILITY                                                                                 ,Staff Payment,BA0000302370,5.00,,
BEIS,The Insolvency Service,20/01/2017,Telecoms,INFORMATION TECHNOLOGY                                                                              ,VODAFONE - CABLE & WIRELESS COMMUNICATIONS,BA0000302378,240.13,232303710,
BEIS,The Insolvency Service,23/01/2017,Agency Workers,FINANCE AND COMMERCIAL                                                                              ,ALLEN LANE LIMITED,BA0000302414,"1,763.46",835970985,
BEIS,The Insolvency Service,23/01/2017,Accommodation,ESTATES,CBRE LIMITED,BA0000302410,"1,644.07",,
BEIS,The Insolvency Service,23/01/2017,Accommodation,ESTATES,CBRE LIMITED,BA0000302412,"1,796.46",,
BEIS,The Insolvency Service,23/01/2017,Telecoms,BUSINESS SERVICES DIRECTORATE                                                                       ,GAMMA BUSINESS COMMUNICATIONS LTD,BA0000302425,140.09,823820344,
BEIS,The Insolvency Service,23/01/2017,Telecoms,FINANCE AND COMMERCIAL                                                                              ,GAMMA BUSINESS COMMUNICATIONS LTD,BA0000302425,536.02,823820344,
BEIS,The Insolvency Service,23/01/2017,Telecoms,INFORMATION TECHNOLOGY                                                                              ,GAMMA BUSINESS COMMUNICATIONS LTD,BA0000302425,146.10,823820344,
BEIS,The Insolvency Service,23/01/2017,Telecoms,OFFICIAL RECEIVER SERVICES                                                                          ,GAMMA BUSINESS COMMUNICATIONS LTD,BA0000302425,48.94,823820344,
BEIS,The Insolvency Service,23/01/2017,Telecoms,OFFICIAL RECEIVER SERVICES                                                                          ,GAMMA BUSINESS COMMUNICATIONS LTD,BA0000302425,67.35,823820344,
BEIS,The Insolvency Service,23/01/2017,Telecoms,OFFICIAL RECEIVER SERVICES                                                                          ,GAMMA BUSINESS COMMUNICATIONS LTD,BA0000302425,77.96,823820344,
BEIS,The Insolvency Service,23/01/2017,Telecoms,OFFICIAL RECEIVER SERVICES                                                                          ,GAMMA BUSINESS COMMUNICATIONS LTD,BA0000302425,103.37,823820344,
BEIS,The Insolvency Service,23/01/2017,Telecoms,OFFICIAL RECEIVER SERVICES                                                                          ,GAMMA BUSINESS COMMUNICATIONS LTD,BA0000302425,113.56,823820344,
BEIS,The Insolvency Service,23/01/2017,Telecoms,OFFICIAL RECEIVER SERVICES                                                                          ,GAMMA BUSINESS COMMUNICATIONS LTD,BA0000302425,118.74,823820344,
BEIS,The Insolvency Service,23/01/2017,Telecoms,OFFICIAL RECEIVER SERVICES                                                                          ,GAMMA BUSINESS COMMUNICATIONS LTD,BA0000302425,127.07,823820344,
BEIS,The Insolvency Service,23/01/2017,Telecoms,OFFICIAL RECEIVER SERVICES                                                                          ,GAMMA BUSINESS COMMUNICATIONS LTD,BA0000302425,129.94,823820344,
BEIS,The Insolvency Service,23/01/2017,Telecoms,OFFICIAL RECEIVER SERVICES                                                                          ,GAMMA BUSINESS COMMUNICATIONS LTD,BA0000302425,208.75,823820344,
BEIS,The Insolvency Service,23/01/2017,Telecoms,OFFICIAL RECEIVER SERVICES                                                                          ,GAMMA BUSINESS COMMUNICATIONS LTD,BA0000302425,357.40,823820344,
BEIS,The Insolvency Service,23/01/2017,Legal Costs,OFFICIAL RECEIVER SERVICES                                                                          ,GOVERNMENT LEGAL DEPARTMENT                                 ,BA0000302427,"2,327.58",888823066,
BEIS,The Insolvency Service,23/01/2017,Investigation and Enforcement Costs,OFFICIAL RECEIVER SERVICES                                                                          ,HMCTS,BA0000302375,528.00,,
BEIS,The Insolvency Service,23/01/2017,Insolvency Case Related Costs,FINANCE AND COMMERCIAL,INSOLVENCY SERVICE,BA0000302420,"9,952.80",,
BEIS,The Insolvency Service,23/01/2017,Insolvency Case Related Costs,FINANCE AND COMMERCIAL,INSOLVENCY SERVICE,BA0000302422,608.00,,
BEIS,The Insolvency Service,23/01/2017,Accommodation,ESTATES                                                                                             ,LAND REGISTRY TELFORD,BA0000302406,-803.49,,
BEIS,The Insolvency Service,23/01/2017,Accommodation,ESTATES                                                                                             ,LAND REGISTRY TELFORD,BA0000302405,"1,564.83",,
BEIS,The Insolvency Service,23/01/2017,Accommodation,ESTATES,MAINTEL                                                     ,BA0000302407,-360.00,,
BEIS,The Insolvency Service,23/01/2017,Accommodation,ESTATES,MAINTEL                                                     ,BA0000302408,360.00,,
BEIS,The Insolvency Service,23/01/2017,Postage,BUSINESS SERVICES DIRECTORATE                                                                       ,NEOPOST LTD - FRANKING TOP UPS,BA0000302438,800.00,,
BEIS,The Insolvency Service,23/01/2017,Postage,INFORMATION TECHNOLOGY                                                                              ,NEOPOST LTD - FRANKING TOP UPS,BA0000302440,"5,000.00",,
BEIS,The Insolvency Service,23/01/2017,Postage,OFFICIAL RECEIVER SERVICES                                                                          ,NEOPOST LTD - FRANKING TOP UPS,BA0000302438,200.00,,
BEIS,The Insolvency Service,23/01/2017,Postage,OFFICIAL RECEIVER SERVICES                                                                          ,NEOPOST LTD - FRANKING TOP UPS,BA0000302438,500.00,,
BEIS,The Insolvency Service,23/01/2017,Postage,OFFICIAL RECEIVER SERVICES                                                                          ,NEOPOST LTD - FRANKING TOP UPS,BA0000302438,500.00,,
BEIS,The Insolvency Service,23/01/2017,Postage,OFFICIAL RECEIVER SERVICES                                                                          ,NEOPOST LTD - FRANKING TOP UPS,BA0000302438,"1,000.00",,
BEIS,The Insolvency Service,23/01/2017,Postage,OFFICIAL RECEIVER SERVICES                                                                          ,NEOPOST LTD - FRANKING TOP UPS,BA0000302441,500.00,,
BEIS,The Insolvency Service,23/01/2017,Postage,OFFICIAL RECEIVER SERVICES                                                                          ,NEOPOST LTD - FRANKING TOP UPS,BA0000302441,600.00,,
BEIS,The Insolvency Service,23/01/2017,Postage,OFFICIAL RECEIVER SERVICES                                                                          ,NEOPOST LTD - FRANKING TOP UPS,BA0000302441,700.00,,
BEIS,The Insolvency Service,23/01/2017,Employee Related Costs,FINANCE AND COMMERCIAL,POSTURITE (UK) LTD.,BA0000302426,254.89,,
BEIS,The Insolvency Service,23/01/2017,Postage,OFFICIAL RECEIVER SERVICES                                                                          ,ROYAL MAIL GROUP LTD - RESPONSE SERVICES)                   ,BA0000302418,70.25,243170002,
BEIS,The Insolvency Service,23/01/2017,Postage,OFFICIAL RECEIVER SERVICES                                                                          ,ROYAL MAIL GROUP LTD - RESPONSE SERVICES)                   ,BA0000302419,95.00,243170002,
BEIS,The Insolvency Service,23/01/2017,Postage,FINANCE AND COMMERCIAL                                                                              ,ROYAL MAIL GROUP LTD - RESPONSE SERVICES)                   ,BA0000302415,33.73,243170002,
BEIS,The Insolvency Service,23/01/2017,Postage,FINANCE AND COMMERCIAL                                                                              ,ROYAL MAIL GROUP LTD - RESPONSE SERVICES)                   ,BA0000302416,52.23,243170002,
BEIS,The Insolvency Service,23/01/2017,Postage,FINANCE AND COMMERCIAL                                                                              ,ROYAL MAIL GROUP LTD - RESPONSE SERVICES)                   ,BA0000302439,869.45,243170002,
BEIS,The Insolvency Service,23/01/2017,Postage,FINANCE AND COMMERCIAL                                                                              ,ROYAL MAIL GROUP LTD - RESPONSE SERVICES)                   ,BA0000302417,88.86,243170002,
BEIS,The Insolvency Service,23/01/2017,Travel and Subsistence,INFORMATION TECHNOLOGY                                                                              ,Staff Payment,BA0000302411,11.90,,
BEIS,The Insolvency Service,23/01/2017,Travel and Subsistence,FINANCE AND COMMERCIAL                                                                              ,Staff Payment,BA0000302411,252.80,,
BEIS,The Insolvency Service,23/01/2017,Travel and Subsistence,OFFICIAL RECEIVER SERVICES                                                                          ,Staff Payment,BA0000302411,4.80,,
BEIS,The Insolvency Service,23/01/2017,Travel and Subsistence,FINANCE AND COMMERCIAL                                                                              ,Staff Payment,BA0000302411,18.00,,
BEIS,The Insolvency Service,23/01/2017,Travel and Subsistence,FINANCE AND COMMERCIAL                                                                              ,Staff Payment,BA0000302411,22.50,,
BEIS,The Insolvency Service,23/01/2017,Travel and Subsistence,PEOPLE & CAPABILITY                                                                                 ,Staff Payment,BA0000302411,7.50,,
BEIS,The Insolvency Service,23/01/2017,Travel and Subsistence,FINANCE AND COMMERCIAL                                                                              ,Staff Payment,BA0000302411,12.00,,
BEIS,The Insolvency Service,23/01/2017,Travel and Subsistence,INFORMATION TECHNOLOGY                                                                              ,Staff Payment,BA0000302411,70.15,,
BEIS,The Insolvency Service,23/01/2017,Travel and Subsistence,OFFICIAL RECEIVER SERVICES                                                                          ,Staff Payment,BA0000302411,14.95,,
BEIS,The Insolvency Service,23/01/2017,Travel and Subsistence,PEOPLE & CAPABILITY                                                                                 ,Staff Payment,BA0000302411,10.00,,
BEIS,The Insolvency Service,23/01/2017,Employee Related Costs,P&C - People Relations                                                                              ,Staff Payment,BA0000302411,231.00,,
BEIS,The Insolvency Service,23/01/2017,Telecoms,INVESTIGATIONS & ENFORCEMENT                                                                        ,Staff Payment,BA0000302411,166.35,,
BEIS,The Insolvency Service,23/01/2017,Travel and Subsistence,BUSINESS SERVICES DIRECTORATE                                                                       ,Staff Payment,BA0000302411,4.60,,
BEIS,The Insolvency Service,23/01/2017,Travel and Subsistence,INVESTIGATIONS & ENFORCEMENT                                                                        ,Staff Payment,BA0000302411,14.30,,
BEIS,The Insolvency Service,23/01/2017,Travel and Subsistence,INVESTIGATIONS & ENFORCEMENT                                                                        ,Staff Payment,BA0000302411,4.80,,
BEIS,The Insolvency Service,23/01/2017,Travel and Subsistence,INVESTIGATIONS & ENFORCEMENT                                                                        ,Staff Payment,BA0000302411,6.40,,
BEIS,The Insolvency Service,23/01/2017,Travel and Subsistence,INVESTIGATIONS & ENFORCEMENT                                                                        ,Staff Payment,BA0000302411,14.50,,
BEIS,The Insolvency Service,23/01/2017,Travel and Subsistence,BUSINESS SERVICES DIRECTORATE                                                                       ,Staff Payment,BA0000302411,14.40,,
BEIS,The Insolvency Service,23/01/2017,Travel and Subsistence,BUSINESS SERVICES DIRECTORATE                                                                       ,Staff Payment,BA0000302411,15.00,,
BEIS,The Insolvency Service,23/01/2017,Travel and Subsistence,BUSINESS SERVICES DIRECTORATE                                                                       ,Staff Payment,BA0000302411,227.25,,
BEIS,The Insolvency Service,23/01/2017,Travel and Subsistence,BUSINESS SERVICES DIRECTORATE                                                                       ,Staff Payment,BA0000302411,33.50,,
BEIS,The Insolvency Service,23/01/2017,Travel and Subsistence,BUSINESS SERVICES DIRECTORATE                                                                       ,Staff Payment,BA0000302411,105.75,,
BEIS,The Insolvency Service,23/01/2017,Travel and Subsistence,BUSINESS SERVICES DIRECTORATE                                                                       ,Staff Payment,BA0000302411,108.25,,
BEIS,The Insolvency Service,23/01/2017,Travel and Subsistence,BUSINESS SERVICES DIRECTORATE                                                                       ,Staff Payment,BA0000302411,40.05,,
BEIS,The Insolvency Service,23/01/2017,Travel and Subsistence,INVESTIGATIONS & ENFORCEMENT                                                                        ,Staff Payment,BA0000302411,7.50,,
BEIS,The Insolvency Service,23/01/2017,Travel and Subsistence,INVESTIGATIONS & ENFORCEMENT                                                                        ,Staff Payment,BA0000302411,3.00,,
BEIS,The Insolvency Service,23/01/2017,Travel and Subsistence,INVESTIGATIONS & ENFORCEMENT                                                                        ,Staff Payment,BA0000302411,39.60,,
BEIS,The Insolvency Service,23/01/2017,Travel and Subsistence,INVESTIGATIONS & ENFORCEMENT                                                                        ,Staff Payment,BA0000302411,13.50,,
BEIS,The Insolvency Service,23/01/2017,Travel and Subsistence,INVESTIGATIONS & ENFORCEMENT                                                                        ,Staff Payment,BA0000302411,37.00,,
BEIS,The Insolvency Service,23/01/2017,Travel and Subsistence,INVESTIGATIONS & ENFORCEMENT                                                                        ,Staff Payment,BA0000302411,11.25,,
BEIS,The Insolvency Service,23/01/2017,Travel and Subsistence,INVESTIGATIONS & ENFORCEMENT                                                                        ,Staff Payment,BA0000302411,12.00,,
BEIS,The Insolvency Service,23/01/2017,Travel and Subsistence,INVESTIGATIONS & ENFORCEMENT                                                                        ,Staff Payment,BA0000302411,1.00,,
BEIS,The Insolvency Service,23/01/2017,Travel and Subsistence,INVESTIGATIONS & ENFORCEMENT                                                                        ,Staff Payment,BA0000302411,18.00,,
BEIS,The Insolvency Service,23/01/2017,Travel and Subsistence,OFFICIAL RECEIVER SERVICES                                                                          ,Staff Payment,BA0000302411,2.70,,
BEIS,The Insolvency Service,23/01/2017,Travel and Subsistence,OFFICIAL RECEIVER SERVICES                                                                          ,Staff Payment,BA0000302411,3.15,,
BEIS,The Insolvency Service,23/01/2017,Travel and Subsistence,OFFICIAL RECEIVER SERVICES                                                                          ,Staff Payment,BA0000302411,18.90,,
BEIS,The Insolvency Service,23/01/2017,Travel and Subsistence,OFFICIAL RECEIVER SERVICES                                                                          ,Staff Payment,BA0000302411,117.90,,
BEIS,The Insolvency Service,23/01/2017,Travel and Subsistence,OFFICIAL RECEIVER SERVICES                                                                          ,Staff Payment,BA0000302411,37.80,,
BEIS,The Insolvency Service,23/01/2017,Travel and Subsistence,OFFICIAL RECEIVER SERVICES                                                                          ,Staff Payment,BA0000302411,2.00,,
BEIS,The Insolvency Service,23/01/2017,Travel and Subsistence,OFFICIAL RECEIVER SERVICES                                                                          ,Staff Payment,BA0000302411,4.80,,
BEIS,The Insolvency Service,23/01/2017,Travel and Subsistence,OFFICIAL RECEIVER SERVICES                                                                          ,Staff Payment,BA0000302411,40.50,,
BEIS,The Insolvency Service,23/01/2017,Travel and Subsistence,OFFICIAL RECEIVER SERVICES                                                                          ,Staff Payment,BA0000302411,5.50,,
BEIS,The Insolvency Service,23/01/2017,Travel and Subsistence,OFFICIAL RECEIVER SERVICES                                                                          ,Staff Payment,BA0000302411,45.00,,
BEIS,The Insolvency Service,23/01/2017,Travel and Subsistence,OFFICIAL RECEIVER SERVICES                                                                          ,Staff Payment,BA0000302411,2.00,,
BEIS,The Insolvency Service,23/01/2017,Travel and Subsistence,OFFICIAL RECEIVER SERVICES                                                                          ,Staff Payment,BA0000302411,16.65,,
BEIS,The Insolvency Service,23/01/2017,Travel and Subsistence,OFFICIAL RECEIVER SERVICES                                                                          ,Staff Payment,BA0000302411,1.60,,
BEIS,The Insolvency Service,23/01/2017,Travel and Subsistence,OFFICIAL RECEIVER SERVICES                                                                          ,Staff Payment,BA0000302411,22.95,,
BEIS,The Insolvency Service,23/01/2017,Travel and Subsistence,OFFICIAL RECEIVER SERVICES                                                                          ,Staff Payment,BA0000302411,2.00,,
BEIS,The Insolvency Service,23/01/2017,Travel and Subsistence,OFFICIAL RECEIVER SERVICES                                                                          ,Staff Payment,BA0000302411,12.15,,
BEIS,The Insolvency Service,23/01/2017,Travel and Subsistence,OFFICIAL RECEIVER SERVICES                                                                          ,Staff Payment,BA0000302411,37.80,,
BEIS,The Insolvency Service,23/01/2017,Travel and Subsistence,PEOPLE & CAPABILITY                                                                                 ,Staff Payment,BA0000302411,25.65,,
BEIS,The Insolvency Service,23/01/2017,Travel and Subsistence,INVESTIGATIONS & ENFORCEMENT                                                                        ,Staff Payment,BA0000302411,5.00,,
BEIS,The Insolvency Service,23/01/2017,Travel and Subsistence,BUSINESS SERVICES DIRECTORATE                                                                       ,Staff Payment,BA0000302411,28.53,,
BEIS,The Insolvency Service,23/01/2017,Travel and Subsistence,BUSINESS SERVICES DIRECTORATE                                                                       ,Staff Payment,BA0000302411,60.99,,
BEIS,The Insolvency Service,23/01/2017,Travel and Subsistence,BUSINESS SERVICES DIRECTORATE                                                                       ,Staff Payment,BA0000302411,30.00,,
BEIS,The Insolvency Service,23/01/2017,Travel and Subsistence,BUSINESS SERVICES DIRECTORATE                                                                       ,Staff Payment,BA0000302411,24.86,,
BEIS,The Insolvency Service,23/01/2017,Travel and Subsistence,BUSINESS SERVICES DIRECTORATE                                                                       ,Staff Payment,BA0000302411,29.59,,
BEIS,The Insolvency Service,23/01/2017,Travel and Subsistence,BUSINESS SERVICES DIRECTORATE                                                                       ,Staff Payment,BA0000302411,4.90,,
BEIS,The Insolvency Service,23/01/2017,Travel and Subsistence,BUSINESS SERVICES DIRECTORATE                                                                       ,Staff Payment,BA0000302411,5.00,,
BEIS,The Insolvency Service,23/01/2017,Travel and Subsistence,INFORMATION TECHNOLOGY                                                                              ,Staff Payment,BA0000302411,18.89,,
BEIS,The Insolvency Service,23/01/2017,Travel and Subsistence,INVESTIGATIONS & ENFORCEMENT                                                                        ,Staff Payment,BA0000302411,47.59,,
BEIS,The Insolvency Service,23/01/2017,Travel and Subsistence,INVESTIGATIONS & ENFORCEMENT                                                                        ,Staff Payment,BA0000302411,12.89,,
BEIS,The Insolvency Service,23/01/2017,Travel and Subsistence,INVESTIGATIONS & ENFORCEMENT                                                                        ,Staff Payment,BA0000302411,2.43,,
BEIS,The Insolvency Service,23/01/2017,Travel and Subsistence,INVESTIGATIONS & ENFORCEMENT                                                                        ,Staff Payment,BA0000302411,8.95,,
BEIS,The Insolvency Service,23/01/2017,Travel and Subsistence,INVESTIGATIONS & ENFORCEMENT                                                                        ,Staff Payment,BA0000302411,36.00,,
BEIS,The Insolvency Service,23/01/2017,Travel and Subsistence,INVESTIGATIONS & ENFORCEMENT                                                                        ,Staff Payment,BA0000302411,5.00,,
BEIS,The Insolvency Service,23/01/2017,Travel and Subsistence,INVESTIGATIONS & ENFORCEMENT                                                                        ,Staff Payment,BA0000302411,26.05,,
BEIS,The Insolvency Service,23/01/2017,Travel and Subsistence,INVESTIGATIONS & ENFORCEMENT                                                                        ,Staff Payment,BA0000302411,4.00,,
BEIS,The Insolvency Service,23/01/2017,Travel and Subsistence,INVESTIGATIONS & ENFORCEMENT                                                                        ,Staff Payment,BA0000302411,3.49,,
BEIS,The Insolvency Service,23/01/2017,Travel and Subsistence,INVESTIGATIONS & ENFORCEMENT                                                                        ,Staff Payment,BA0000302411,5.00,,
BEIS,The Insolvency Service,23/01/2017,Travel and Subsistence,OFFICIAL RECEIVER SERVICES                                                                          ,Staff Payment,BA0000302411,1.50,,
BEIS,The Insolvency Service,23/01/2017,Travel and Subsistence,OFFICIAL RECEIVER SERVICES                                                                          ,Staff Payment,BA0000302411,5.00,,
BEIS,The Insolvency Service,23/01/2017,Travel and Subsistence,OFFICIAL RECEIVER SERVICES                                                                          ,Staff Payment,BA0000302411,5.00,,
BEIS,The Insolvency Service,23/01/2017,Travel and Subsistence,OFFICIAL RECEIVER SERVICES                                                                          ,Staff Payment,BA0000302411,4.89,,
BEIS,The Insolvency Service,23/01/2017,Travel and Subsistence,PEOPLE & CAPABILITY                                                                                 ,Staff Payment,BA0000302411,8.35,,
BEIS,The Insolvency Service,23/01/2017,Insolvency Case Related Costs,INVESTIGATIONS & ENFORCEMENT                                                                        ,Staff Payment,BA0000302411,7.00,,
BEIS,The Insolvency Service,23/01/2017,Insolvency Case Related Costs,INVESTIGATIONS & ENFORCEMENT                                                                        ,Staff Payment,BA0000302411,7.00,,
BEIS,The Insolvency Service,23/01/2017,Employee Related Costs,BUSINESS SERVICES DIRECTORATE                                                                       ,Staff Payment,BA0000302411,14.60,,
BEIS,The Insolvency Service,23/01/2017,Employee Related Costs,P&C - People Relations                                                                              ,Staff Payment,BA0000302411,231.00,,
BEIS,The Insolvency Service,23/01/2017,Employee Related Costs,PEOPLE & CAPABILITY                                                                                 ,Staff Payment,BA0000302411,516.00,,
BEIS,The Insolvency Service,23/01/2017,Training Costs,OFFICIAL RECEIVER SERVICES                                                                          ,Staff Payment,BA0000302411,"2,625.00",,
BEIS,The Insolvency Service,23/01/2017,Insolvency Case Related Costs,OFFICIAL RECEIVER SERVICES                                                                          ,THE STATIONERY OFFICE LTD,BA0000302429,72.24,662774703,
BEIS,The Insolvency Service,23/01/2017,Insolvency Case Related Costs,OFFICIAL RECEIVER SERVICES                                                                          ,THE STATIONERY OFFICE LTD,BA0000302430,216.72,662774703,
BEIS,The Insolvency Service,23/01/2017,Insolvency Case Related Costs,OFFICIAL RECEIVER SERVICES                                                                          ,THE STATIONERY OFFICE LTD,BA0000302431,216.72,662774703,
BEIS,The Insolvency Service,23/01/2017,Insolvency Case Related Costs,OFFICIAL RECEIVER SERVICES                                                                          ,THE STATIONERY OFFICE LTD,BA0000302432,144.48,662774703,
BEIS,The Insolvency Service,23/01/2017,Insolvency Case Related Costs,OFFICIAL RECEIVER SERVICES                                                                          ,THE STATIONERY OFFICE LTD,BA0000302433,144.48,662774703,
BEIS,The Insolvency Service,23/01/2017,Insolvency Case Related Costs,OFFICIAL RECEIVER SERVICES                                                                          ,THE STATIONERY OFFICE LTD,BA0000302434,144.48,662774703,
BEIS,The Insolvency Service,23/01/2017,Insolvency Case Related Costs,OFFICIAL RECEIVER SERVICES                                                                          ,THE STATIONERY OFFICE LTD,BA0000302435,72.24,662774703,
BEIS,The Insolvency Service,23/01/2017,Insolvency Case Related Costs,OFFICIAL RECEIVER SERVICES                                                                          ,THE STATIONERY OFFICE LTD,BA0000302436,144.48,662774703,
BEIS,The Insolvency Service,23/01/2017,Insolvency Case Related Costs,OFFICIAL RECEIVER SERVICES                                                                          ,THE STATIONERY OFFICE LTD,BA0000302437,72.24,662774703,
BEIS,The Insolvency Service,23/01/2017,Telecoms,INFORMATION TECHNOLOGY                                                                              ,VODAFONE - CABLE & WIRELESS COMMUNICATIONS,BA0000302413,"3,207.24",232303710,
BEIS,The Insolvency Service,24/01/2017,Agency Workers,P&C - People Relations                                                                              ,BADENOCH & CLARK,BA0000302443,841.86,232347975,
BEIS,The Insolvency Service,24/01/2017,Postage,FINANCE AND COMMERCIAL                                                                              ,BIS - DEPT. FOR BUSINESS INNOVATION & SKILLS,BA0000302444,"1,038.38",888825550,
BEIS,The Insolvency Service,24/01/2017,Postage,FINANCE AND COMMERCIAL                                                                              ,BIS - DEPT. FOR BUSINESS INNOVATION & SKILLS,BA0000302459,"1,690.19",888825550,
BEIS,The Insolvency Service,24/01/2017,Investigation and Enforcement Costs,INVESTIGATIONS & ENFORCEMENT                                                                        ,BOND DICKINSON                                              ,BA0000302457,"5,000.00",123392627,
BEIS,The Insolvency Service,24/01/2017,Investigation and Enforcement Costs,OFFICIAL RECEIVER SERVICES                                                                          ,MISS KATHERINE APPS                                         ,BA0000302458,300.00,933811918,
BEIS,The Insolvency Service,24/01/2017,Office Supplies and Services,FINANCE AND COMMERCIAL                                                                              ,NEOPOST LIMITED (CONSUMABLES),BA0000302461,138.00,597265489,
BEIS,The Insolvency Service,25/01/2017,Accommodation,ESTATES,BIS - DEPT. FOR BUSINESS INNOVATION & SKILLS,BA0000302488,"4,772.21",888825550,
BEIS,The Insolvency Service,25/01/2017,Investigation and Enforcement Costs,INVESTIGATIONS & ENFORCEMENT                                                                        ,BOND DICKINSON                                              ,BA0000302480,"18,980.66",123392627,
BEIS,The Insolvency Service,25/01/2017,Investigation and Enforcement Costs,INVESTIGATIONS & ENFORCEMENT                                                                        ,BOND DICKINSON                                              ,BA0000302480,"39,194.62",123392627,
BEIS,The Insolvency Service,25/01/2017,Investigation and Enforcement Costs,INVESTIGATIONS & ENFORCEMENT                                                                        ,BOND DICKINSON                                              ,BA0000302480,"1,433.90",123392627,
BEIS,The Insolvency Service,25/01/2017,Investigation and Enforcement Costs,INVESTIGATIONS & ENFORCEMENT                                                                        ,BOND DICKINSON                                              ,BA0000302480,"7,554.17",123392627,
BEIS,The Insolvency Service,25/01/2017,Investigation and Enforcement Costs,INVESTIGATIONS & ENFORCEMENT                                                                        ,BOND DICKINSON                                              ,BA0000302480,785.27,123392627,
BEIS,The Insolvency Service,25/01/2017,Investigation and Enforcement Costs,INVESTIGATIONS & ENFORCEMENT                                                                        ,BOND DICKINSON                                              ,BA0000302480,"7,750.00",123392627,
BEIS,The Insolvency Service,25/01/2017,Telecoms,ESTATES,BT CONFERENCING SERVICES,BA0000302485,7.99,245719348,
BEIS,The Insolvency Service,25/01/2017,Postage,FINANCE AND COMMERCIAL                                                                              ,CITY SPRINT UK LTD,BA0000302486,60.86,,
BEIS,The Insolvency Service,25/01/2017,Insolvency Case Related Costs,OFFICIAL RECEIVER SERVICES                                                                          ,COMPANIES HOUSE,BA0000302489,4.00,GD255,
BEIS,The Insolvency Service,25/01/2017,Postage,OFFICIAL RECEIVER SERVICES                                                                          ,DX NETWORK SERVICES LTD,BA0000302478,80.13,849741385,
BEIS,The Insolvency Service,25/01/2017,Investigation and Enforcement Costs,OFFICIAL RECEIVER SERVICES                                                                          ,HMCTS,BA0000302469,308.00,,
BEIS,The Insolvency Service,25/01/2017,Investigation and Enforcement Costs,OFFICIAL RECEIVER SERVICES                                                                          ,HMCTS,BA0000302470,308.00,,
BEIS,The Insolvency Service,25/01/2017,Investigation and Enforcement Costs,OFFICIAL RECEIVER SERVICES                                                                          ,HMCTS,BA0000302471,308.00,,
BEIS,The Insolvency Service,25/01/2017,Conferences,INVESTIGATIONS & ENFORCEMENT                                                                        ,ITSA LIMITED,BA0000302484,"1,963.44",795862660,
BEIS,The Insolvency Service,25/01/2017,Office Supplies and Services,OFFICIAL RECEIVER SERVICES                                                                          ,NEOPOST LIMITED (CONSUMABLES),BA0000302490,275.98,597265489,
BEIS,The Insolvency Service,25/01/2017,Accommodation,ESTATES,NORTHAMPTONSHIRE COUNTY COUNCIL,BA0000302487,301.00,,
BEIS,The Insolvency Service,25/01/2017,Employee Related Costs,FINANCE AND COMMERCIAL,POSTURITE (UK) LTD.,BA0000302481,656.10,,
BEIS,The Insolvency Service,25/01/2017,Travel and Subsistence,FINANCE AND COMMERCIAL                                                                              ,Staff Payment,BA0000302491,2.40,,
BEIS,The Insolvency Service,25/01/2017,Travel and Subsistence,P&C - Talent                                                                                        ,Staff Payment,BA0000302491,45.04,,
BEIS,The Insolvency Service,25/01/2017,Travel and Subsistence,BUSINESS SERVICES DIRECTORATE                                                                       ,Staff Payment,BA0000302491,5.50,,
BEIS,The Insolvency Service,25/01/2017,Travel and Subsistence,BUSINESS SERVICES DIRECTORATE                                                                       ,Staff Payment,BA0000302491,57.25,,
BEIS,The Insolvency Service,25/01/2017,Travel and Subsistence,FINANCE AND COMMERCIAL,Staff Payment,BA0000302491,24.00,,
BEIS,The Insolvency Service,25/01/2017,Travel and Subsistence,INVESTIGATIONS & ENFORCEMENT                                                                        ,Staff Payment,BA0000302491,85.50,,
BEIS,The Insolvency Service,25/01/2017,Travel and Subsistence,P&C - Talent                                                                                        ,Staff Payment,BA0000302491,20.00,,
BEIS,The Insolvency Service,25/01/2017,Travel and Subsistence,BUSINESS SERVICES DIRECTORATE                                                                       ,Staff Payment,BA0000302491,4.79,,
BEIS,The Insolvency Service,25/01/2017,Travel and Subsistence,FINANCE AND COMMERCIAL,Staff Payment,BA0000302491,15.00,,
BEIS,The Insolvency Service,25/01/2017,Travel and Subsistence,FINANCE AND COMMERCIAL                                                                              ,Staff Payment,BA0000302491,31.30,,
BEIS,The Insolvency Service,25/01/2017,Travel and Subsistence,P&C - Talent                                                                                        ,Staff Payment,BA0000302491,4.80,,
BEIS,The Insolvency Service,25/01/2017,Travel and Subsistence,P&C - Talent                                                                                        ,Staff Payment,BA0000302491,11.14,,
BEIS,The Insolvency Service,25/01/2017,Travel and Subsistence,INVESTIGATIONS & ENFORCEMENT                                                                        ,Staff Payment,BA0000302491,39.15,,
BEIS,The Insolvency Service,25/01/2017,Travel and Subsistence,INVESTIGATIONS & ENFORCEMENT                                                                        ,Staff Payment,BA0000302491,5.00,,
BEIS,The Insolvency Service,25/01/2017,Travel and Subsistence,INVESTIGATIONS & ENFORCEMENT                                                                        ,Staff Payment,BA0000302491,18.90,,
BEIS,The Insolvency Service,25/01/2017,Travel and Subsistence,OFFICIAL RECEIVER SERVICES                                                                          ,Staff Payment,BA0000302491,6.60,,
BEIS,The Insolvency Service,25/01/2017,Travel and Subsistence,OFFICIAL RECEIVER SERVICES                                                                          ,Staff Payment,BA0000302491,11.70,,
BEIS,The Insolvency Service,25/01/2017,Travel and Subsistence,OFFICIAL RECEIVER SERVICES                                                                          ,Staff Payment,BA0000302491,17.10,,
BEIS,The Insolvency Service,25/01/2017,Travel and Subsistence,OFFICIAL RECEIVER SERVICES                                                                          ,Staff Payment,BA0000302491,42.30,,
BEIS,The Insolvency Service,25/01/2017,Travel and Subsistence,OFFICIAL RECEIVER SERVICES                                                                          ,Staff Payment,BA0000302491,3.00,,
BEIS,The Insolvency Service,25/01/2017,Travel and Subsistence,OFFICIAL RECEIVER SERVICES                                                                          ,Staff Payment,BA0000302491,28.80,,
BEIS,The Insolvency Service,25/01/2017,Travel and Subsistence,OFFICIAL RECEIVER SERVICES                                                                          ,Staff Payment,BA0000302491,13.50,,
BEIS,The Insolvency Service,25/01/2017,Travel and Subsistence,PEOPLE & CAPABILITY                                                                                 ,Staff Payment,BA0000302491,18.00,,
BEIS,The Insolvency Service,25/01/2017,Travel and Subsistence,PEOPLE & CAPABILITY                                                                                 ,Staff Payment,BA0000302491,18.00,,
BEIS,The Insolvency Service,25/01/2017,Travel and Subsistence,PEOPLE & CAPABILITY                                                                                 ,Staff Payment,BA0000302491,13.50,,
BEIS,The Insolvency Service,25/01/2017,Travel and Subsistence,PEOPLE & CAPABILITY                                                                                 ,Staff Payment,BA0000302491,88.20,,
BEIS,The Insolvency Service,25/01/2017,Travel and Subsistence,PEOPLE & CAPABILITY                                                                                 ,Staff Payment,BA0000302491,18.00,,
BEIS,The Insolvency Service,25/01/2017,Travel and Subsistence,INVESTIGATIONS & ENFORCEMENT                                                                        ,Staff Payment,BA0000302491,8.90,,
BEIS,The Insolvency Service,25/01/2017,Postage,FINANCE AND COMMERCIAL                                                                              ,TNT UK LTD,BA0000302482,44.40,354715057,
BEIS,The Insolvency Service,25/01/2017,Postage,FINANCE AND COMMERCIAL                                                                              ,TNT UK LTD,BA0000302483,41.04,354715057,
BEIS,The Insolvency Service,25/01/2017,Office Supplies and Services,BUSINESS SERVICES DIRECTORATE                                                                       ,YPO                                                         ,BA0000302462,11.40,642720651,
BEIS,The Insolvency Service,25/01/2017,Office Supplies and Services,BUSINESS SERVICES DIRECTORATE                                                                       ,YPO                                                         ,BA0000302477,372.00,642720651,
BEIS,The Insolvency Service,26/01/2017,Office Supplies and Services,CUSTOMER AND COMMUNICATIONS                                                                         ,BIS - DEPT. FOR BUSINESS INNOVATION & SKILLS,BA0000302515,18.52,888825550,
BEIS,The Insolvency Service,26/01/2017,Office Supplies and Services,CUSTOMER AND COMMUNICATIONS                                                                         ,BIS - DEPT. FOR BUSINESS INNOVATION & SKILLS,BA0000302515,247.56,888825550,
BEIS,The Insolvency Service,26/01/2017,Office Supplies and Services,CUSTOMER AND COMMUNICATIONS                                                                         ,BIS - DEPT. FOR BUSINESS INNOVATION & SKILLS,BA0000302515,286.90,888825550,
BEIS,The Insolvency Service,26/01/2017,Office Supplies and Services,CUSTOMER AND COMMUNICATIONS                                                                         ,BIS - DEPT. FOR BUSINESS INNOVATION & SKILLS,BA0000302515,730.37,888825550,
BEIS,The Insolvency Service,26/01/2017,Office Supplies and Services,FINANCE AND COMMERCIAL                                                                              ,BIS - DEPT. FOR BUSINESS INNOVATION & SKILLS,BA0000302515,58.59,888825550,
BEIS,The Insolvency Service,26/01/2017,Office Supplies and Services,FINANCE AND COMMERCIAL                                                                              ,BIS - DEPT. FOR BUSINESS INNOVATION & SKILLS,BA0000302515,73.65,888825550,
BEIS,The Insolvency Service,26/01/2017,Office Supplies and Services,INFORMATION TECHNOLOGY                                                                              ,BIS - DEPT. FOR BUSINESS INNOVATION & SKILLS,BA0000302515,115.04,888825550,
BEIS,The Insolvency Service,26/01/2017,Office Supplies and Services,INVESTIGATIONS & ENFORCEMENT                                                                        ,BIS - DEPT. FOR BUSINESS INNOVATION & SKILLS,BA0000302515,51.52,888825550,
BEIS,The Insolvency Service,26/01/2017,Office Supplies and Services,INVESTIGATIONS & ENFORCEMENT                                                                        ,BIS - DEPT. FOR BUSINESS INNOVATION & SKILLS,BA0000302515,80.09,888825550,
BEIS,The Insolvency Service,26/01/2017,Office Supplies and Services,INVESTIGATIONS & ENFORCEMENT                                                                        ,BIS - DEPT. FOR BUSINESS INNOVATION & SKILLS,BA0000302515,103.03,888825550,
BEIS,The Insolvency Service,26/01/2017,Office Supplies and Services,INVESTIGATIONS & ENFORCEMENT                                                                        ,BIS - DEPT. FOR BUSINESS INNOVATION & SKILLS,BA0000302515,140.83,888825550,
BEIS,The Insolvency Service,26/01/2017,Office Supplies and Services,OFFICIAL RECEIVER SERVICES                                                                          ,BIS - DEPT. FOR BUSINESS INNOVATION & SKILLS,BA0000302515,3.31,888825550,
BEIS,The Insolvency Service,26/01/2017,Office Supplies and Services,OFFICIAL RECEIVER SERVICES                                                                          ,BIS - DEPT. FOR BUSINESS INNOVATION & SKILLS,BA0000302515,9.41,888825550,
BEIS,The Insolvency Service,26/01/2017,Office Supplies and Services,OFFICIAL RECEIVER SERVICES                                                                          ,BIS - DEPT. FOR BUSINESS INNOVATION & SKILLS,BA0000302515,22.25,888825550,
BEIS,The Insolvency Service,26/01/2017,Office Supplies and Services,OFFICIAL RECEIVER SERVICES                                                                          ,BIS - DEPT. FOR BUSINESS INNOVATION & SKILLS,BA0000302515,47.52,888825550,
BEIS,The Insolvency Service,26/01/2017,Office Supplies and Services,OFFICIAL RECEIVER SERVICES                                                                          ,BIS - DEPT. FOR BUSINESS INNOVATION & SKILLS,BA0000302515,159.35,888825550,
BEIS,The Insolvency Service,26/01/2017,Office Supplies and Services,OFFICIAL RECEIVER SERVICES                                                                          ,BIS - DEPT. FOR BUSINESS INNOVATION & SKILLS,BA0000302515,457.53,888825550,
BEIS,The Insolvency Service,26/01/2017,Office Supplies and Services,P&C - People Relations                                                                              ,BIS - DEPT. FOR BUSINESS INNOVATION & SKILLS,BA0000302515,209.79,888825550,
BEIS,The Insolvency Service,26/01/2017,Agency Workers,FINANCE AND COMMERCIAL,BROOK STREET (UK) LTD,BA0000302521,"19,652.34",,
BEIS,The Insolvency Service,26/01/2017,Investigation and Enforcement Costs,INVESTIGATIONS & ENFORCEMENT                                                                        ,BURNESS PAULL & WILLIAMSONS SOLICITORS,BA0000302523,"7,283.60",268398111,
BEIS,The Insolvency Service,26/01/2017,Investigation and Enforcement Costs,INVESTIGATIONS & ENFORCEMENT                                                                        ,BURNESS PAULL & WILLIAMSONS SOLICITORS,BA0000302523,"3,993.90",268398111,
BEIS,The Insolvency Service,26/01/2017,Investigation and Enforcement Costs,INVESTIGATIONS & ENFORCEMENT                                                                        ,BURNESS PAULL & WILLIAMSONS SOLICITORS,BA0000302523,"1,223.50",268398111,
BEIS,The Insolvency Service,26/01/2017,Investigation and Enforcement Costs,INVESTIGATIONS & ENFORCEMENT                                                                        ,BURNESS PAULL & WILLIAMSONS SOLICITORS,BA0000302523,292.10,268398111,
BEIS,The Insolvency Service,26/01/2017,Insolvency Case Related Costs,FINANCE AND COMMERCIAL,CBRE LIMITED,BA0000302516,76.79,,
BEIS,The Insolvency Service,26/01/2017,Insolvency Case Related Costs,FINANCE AND COMMERCIAL,CBRE LIMITED,BA0000302517,76.62,,
BEIS,The Insolvency Service,26/01/2017,Insolvency Case Related Costs,OFFICIAL RECEIVER SERVICES                                                                          ,COMPANIES HOUSE,BA0000302518,4.00,GD255,
BEIS,The Insolvency Service,26/01/2017,Investigation and Enforcement Costs,INVESTIGATIONS & ENFORCEMENT                                                                        ,DWF                                                         ,BA0000302526,"3,663.00",,
BEIS,The Insolvency Service,26/01/2017,Investigation and Enforcement Costs,INVESTIGATIONS & ENFORCEMENT                                                                        ,GOWLING WRAGGE LAWRENCE GRAHAM  & CO                        ,BA0000302524,"13,229.85",858698838,
BEIS,The Insolvency Service,26/01/2017,Employee Related Costs,FINANCE AND COMMERCIAL                                                                              ,MICHAEL PAGE INTERNATIONAL RECRUITMENT LTD,BA0000302514,"1,140.00",354259936,
BEIS,The Insolvency Service,26/01/2017,Investigation and Enforcement Costs,INVESTIGATIONS & ENFORCEMENT                                                                        ,SHEPHERD & WEDDERBURN WS (SCOTTISH CASES)                   ,BA0000302525,"2,063.47",890559386,
BEIS,The Insolvency Service,26/01/2017,Employee Related Costs,P&C - People Relations                                                                              ,Staff Payment,BA0000302519,355.00,,
BEIS,The Insolvency Service,26/01/2017,Employee Related Costs,PEOPLE & CAPABILITY                                                                                 ,Staff Payment,BA0000302519,310.00,,
BEIS,The Insolvency Service,26/01/2017,Travel and Subsistence,INVESTIGATIONS & ENFORCEMENT                                                                        ,Staff Payment,BA0000302519,7.95,,
BEIS,The Insolvency Service,26/01/2017,Travel and Subsistence,INVESTIGATIONS & ENFORCEMENT                                                                        ,Staff Payment,BA0000302519,55.70,,
BEIS,The Insolvency Service,26/01/2017,Travel and Subsistence,INVESTIGATIONS & ENFORCEMENT                                                                        ,Staff Payment,BA0000302519,7.50,,
BEIS,The Insolvency Service,26/01/2017,Travel and Subsistence,INVESTIGATIONS & ENFORCEMENT                                                                        ,Staff Payment,BA0000302519,7.50,,
BEIS,The Insolvency Service,26/01/2017,Travel and Subsistence,INVESTIGATIONS & ENFORCEMENT                                                                        ,Staff Payment,BA0000302519,1.80,,
BEIS,The Insolvency Service,26/01/2017,Travel and Subsistence,INVESTIGATIONS & ENFORCEMENT                                                                        ,Staff Payment,BA0000302519,8.40,,
BEIS,The Insolvency Service,26/01/2017,Travel and Subsistence,OFFICIAL RECEIVER SERVICES                                                                          ,Staff Payment,BA0000302519,8.10,,
BEIS,The Insolvency Service,26/01/2017,Travel and Subsistence,OFFICIAL RECEIVER SERVICES                                                                          ,Staff Payment,BA0000302519,2.50,,
BEIS,The Insolvency Service,26/01/2017,Travel and Subsistence,INVESTIGATIONS & ENFORCEMENT                                                                        ,Staff Payment,BA0000302519,9.90,,
BEIS,The Insolvency Service,26/01/2017,Travel and Subsistence,INVESTIGATIONS & ENFORCEMENT                                                                        ,Staff Payment,BA0000302519,12.00,,
BEIS,The Insolvency Service,26/01/2017,Travel and Subsistence,INVESTIGATIONS & ENFORCEMENT                                                                        ,Staff Payment,BA0000302519,11.25,,
BEIS,The Insolvency Service,26/01/2017,Travel and Subsistence,INVESTIGATIONS & ENFORCEMENT                                                                        ,Staff Payment,BA0000302519,12.00,,
BEIS,The Insolvency Service,26/01/2017,Travel and Subsistence,INVESTIGATIONS & ENFORCEMENT                                                                        ,Staff Payment,BA0000302519,84.60,,
BEIS,The Insolvency Service,26/01/2017,Travel and Subsistence,INVESTIGATIONS & ENFORCEMENT                                                                        ,Staff Payment,BA0000302519,12.00,,
BEIS,The Insolvency Service,26/01/2017,Travel and Subsistence,INVESTIGATIONS & ENFORCEMENT                                                                        ,Staff Payment,BA0000302519,52.00,,
BEIS,The Insolvency Service,26/01/2017,Travel and Subsistence,INVESTIGATIONS & ENFORCEMENT                                                                        ,Staff Payment,BA0000302519,32.00,,
BEIS,The Insolvency Service,26/01/2017,Travel and Subsistence,INVESTIGATIONS & ENFORCEMENT                                                                        ,Staff Payment,BA0000302519,12.00,,
BEIS,The Insolvency Service,26/01/2017,Travel and Subsistence,INVESTIGATIONS & ENFORCEMENT                                                                        ,Staff Payment,BA0000302519,11.80,,
BEIS,The Insolvency Service,26/01/2017,Travel and Subsistence,INVESTIGATIONS & ENFORCEMENT                                                                        ,Staff Payment,BA0000302519,37.80,,
BEIS,The Insolvency Service,26/01/2017,Travel and Subsistence,INVESTIGATIONS & ENFORCEMENT                                                                        ,Staff Payment,BA0000302519,12.00,,
BEIS,The Insolvency Service,26/01/2017,Travel and Subsistence,INVESTIGATIONS & ENFORCEMENT                                                                        ,Staff Payment,BA0000302519,18.90,,
BEIS,The Insolvency Service,26/01/2017,Travel and Subsistence,OFFICIAL RECEIVER SERVICES                                                                          ,Staff Payment,BA0000302519,78.35,,
BEIS,The Insolvency Service,26/01/2017,Travel and Subsistence,OFFICIAL RECEIVER SERVICES                                                                          ,Staff Payment,BA0000302519,4.90,,
BEIS,The Insolvency Service,26/01/2017,Travel and Subsistence,OFFICIAL RECEIVER SERVICES                                                                          ,Staff Payment,BA0000302519,12.60,,
BEIS,The Insolvency Service,26/01/2017,Travel and Subsistence,OFFICIAL RECEIVER SERVICES                                                                          ,Staff Payment,BA0000302519,166.95,,
BEIS,The Insolvency Service,26/01/2017,Travel and Subsistence,OFFICIAL RECEIVER SERVICES                                                                          ,Staff Payment,BA0000302519,27.00,,
BEIS,The Insolvency Service,26/01/2017,Travel and Subsistence,OFFICIAL RECEIVER SERVICES                                                                          ,Staff Payment,BA0000302519,35.55,,
BEIS,The Insolvency Service,26/01/2017,Travel and Subsistence,OFFICIAL RECEIVER SERVICES                                                                          ,Staff Payment,BA0000302519,4.50,,
BEIS,The Insolvency Service,26/01/2017,Travel and Subsistence,OFFICIAL RECEIVER SERVICES                                                                          ,Staff Payment,BA0000302519,50.85,,
BEIS,The Insolvency Service,26/01/2017,Travel and Subsistence,OFFICIAL RECEIVER SERVICES                                                                          ,Staff Payment,BA0000302519,57.60,,
BEIS,The Insolvency Service,26/01/2017,Travel and Subsistence,OFFICIAL RECEIVER SERVICES                                                                          ,Staff Payment,BA0000302519,67.50,,
BEIS,The Insolvency Service,26/01/2017,Travel and Subsistence,OFFICIAL RECEIVER SERVICES                                                                          ,Staff Payment,BA0000302519,10.50,,
BEIS,The Insolvency Service,26/01/2017,Travel and Subsistence,OFFICIAL RECEIVER SERVICES                                                                          ,Staff Payment,BA0000302519,98.10,,
BEIS,The Insolvency Service,26/01/2017,Travel and Subsistence,OFFICIAL RECEIVER SERVICES                                                                          ,Staff Payment,BA0000302519,3.00,,
BEIS,The Insolvency Service,26/01/2017,Travel and Subsistence,OFFICIAL RECEIVER SERVICES                                                                          ,Staff Payment,BA0000302519,37.80,,
BEIS,The Insolvency Service,26/01/2017,Travel and Subsistence,OFFICIAL RECEIVER SERVICES                                                                          ,Staff Payment,BA0000302519,36.90,,
BEIS,The Insolvency Service,26/01/2017,Travel and Subsistence,FINANCE AND COMMERCIAL,Staff Payment,BA0000302519,6.99,,
BEIS,The Insolvency Service,26/01/2017,Travel and Subsistence,OFFICIAL RECEIVER SERVICES                                                                          ,Staff Payment,BA0000302519,25.80,,
BEIS,The Insolvency Service,26/01/2017,Travel and Subsistence,FINANCE AND COMMERCIAL,Staff Payment,BA0000302519,8.48,,
BEIS,The Insolvency Service,26/01/2017,Travel and Subsistence,INVESTIGATIONS & ENFORCEMENT                                                                        ,Staff Payment,BA0000302519,22.35,,
BEIS,The Insolvency Service,26/01/2017,Travel and Subsistence,INVESTIGATIONS & ENFORCEMENT                                                                        ,Staff Payment,BA0000302519,4.60,,
BEIS,The Insolvency Service,26/01/2017,Travel and Subsistence,INVESTIGATIONS & ENFORCEMENT                                                                        ,Staff Payment,BA0000302519,5.00,,
BEIS,The Insolvency Service,26/01/2017,Travel and Subsistence,INVESTIGATIONS & ENFORCEMENT                                                                        ,Staff Payment,BA0000302519,3.00,,
BEIS,The Insolvency Service,26/01/2017,Travel and Subsistence,INVESTIGATIONS & ENFORCEMENT                                                                        ,Staff Payment,BA0000302519,3.00,,
BEIS,The Insolvency Service,26/01/2017,Travel and Subsistence,INVESTIGATIONS & ENFORCEMENT                                                                        ,Staff Payment,BA0000302519,21.20,,
BEIS,The Insolvency Service,26/01/2017,Travel and Subsistence,INVESTIGATIONS & ENFORCEMENT                                                                        ,Staff Payment,BA0000302519,3.40,,
BEIS,The Insolvency Service,26/01/2017,Travel and Subsistence,INVESTIGATIONS & ENFORCEMENT                                                                        ,Staff Payment,BA0000302519,4.95,,
BEIS,The Insolvency Service,26/01/2017,Travel and Subsistence,INVESTIGATIONS & ENFORCEMENT                                                                        ,Staff Payment,BA0000302519,5.00,,
BEIS,The Insolvency Service,26/01/2017,Travel and Subsistence,INVESTIGATIONS & ENFORCEMENT                                                                        ,Staff Payment,BA0000302519,5.00,,
BEIS,The Insolvency Service,26/01/2017,Travel and Subsistence,INVESTIGATIONS & ENFORCEMENT                                                                        ,Staff Payment,BA0000302519,24.95,,
BEIS,The Insolvency Service,26/01/2017,Travel and Subsistence,INVESTIGATIONS & ENFORCEMENT                                                                        ,Staff Payment,BA0000302519,4.90,,
BEIS,The Insolvency Service,26/01/2017,Travel and Subsistence,INVESTIGATIONS & ENFORCEMENT                                                                        ,Staff Payment,BA0000302519,4.80,,
BEIS,The Insolvency Service,26/01/2017,Travel and Subsistence,INVESTIGATIONS & ENFORCEMENT                                                                        ,Staff Payment,BA0000302519,42.19,,
BEIS,The Insolvency Service,26/01/2017,Travel and Subsistence,OFFICIAL RECEIVER SERVICES                                                                          ,Staff Payment,BA0000302519,83.01,,
BEIS,The Insolvency Service,26/01/2017,Travel and Subsistence,OFFICIAL RECEIVER SERVICES                                                                          ,Staff Payment,BA0000302519,2.50,,
BEIS,The Insolvency Service,26/01/2017,Travel and Subsistence,OFFICIAL RECEIVER SERVICES                                                                          ,Staff Payment,BA0000302519,23.05,,
BEIS,The Insolvency Service,26/01/2017,Travel and Subsistence,OFFICIAL RECEIVER SERVICES                                                                          ,Staff Payment,BA0000302519,25.00,,
BEIS,The Insolvency Service,26/01/2017,Travel and Subsistence,OFFICIAL RECEIVER SERVICES                                                                          ,Staff Payment,BA0000302519,5.00,,
BEIS,The Insolvency Service,26/01/2017,Travel and Subsistence,OFFICIAL RECEIVER SERVICES                                                                          ,Staff Payment,BA0000302519,4.74,,
BEIS,The Insolvency Service,26/01/2017,Insolvency Case Related Costs,INVESTIGATIONS & ENFORCEMENT                                                                        ,Staff Payment,BA0000302519,7.00,,
BEIS,The Insolvency Service,26/01/2017,Insolvency Case Related Costs,INVESTIGATIONS & ENFORCEMENT                                                                        ,Staff Payment,BA0000302519,21.00,,
BEIS,The Insolvency Service,26/01/2017,Investigation and Enforcement Costs,OFFICIAL RECEIVER SERVICES                                                                          ,Staff Payment,BA0000302519,28.00,,
BEIS,The Insolvency Service,26/01/2017,Postage,BUSINESS SERVICES DIRECTORATE                                                                       ,TNT UK LTD,BA0000302520,17.69,354715057,
BEIS,The Insolvency Service,26/01/2017,Postage,BUSINESS SERVICES DIRECTORATE                                                                       ,TNT UK LTD,BA0000302509,8.58,354715057,
BEIS,The Insolvency Service,26/01/2017,Postage,BUSINESS SERVICES DIRECTORATE                                                                       ,TNT UK LTD,BA0000302510,10.36,354715057,
BEIS,The Insolvency Service,26/01/2017,Postage,BUSINESS SERVICES DIRECTORATE                                                                       ,TNT UK LTD,BA0000302511,8.56,354715057,
BEIS,The Insolvency Service,26/01/2017,Postage,BUSINESS SERVICES DIRECTORATE                                                                       ,TNT UK LTD,BA0000302512,8.56,354715057,
BEIS,The Insolvency Service,26/01/2017,Postage,BUSINESS SERVICES DIRECTORATE                                                                       ,TNT UK LTD,BA0000302513,17.12,354715057,
BEIS,The Insolvency Service,27/01/2017,Training Costs,PEOPLE & CAPABILITY                                                                                 ,BPP PROFESSIONAL EDUCATION,BA0000302537,"15,300.00",466451629,
BEIS,The Insolvency Service,27/01/2017,Agency Workers,INFORMATION TECHNOLOGY                                                                              ,CAPITA BUSINESS SERVICES LTD,BA0000302546,"2,282.46",618184140,
BEIS,The Insolvency Service,27/01/2017,Accommodation,ESTATES,CEPF II CJ S.� r.l.                                         ,BA0000302544,"96,000.00",,
BEIS,The Insolvency Service,27/01/2017,Agency Workers,INFORMATION TECHNOLOGY                                                                              ,CONCEPT INFORMATION TECHNOLOGY LTD                          ,BA0000302538,"1,950.00",776147892,
BEIS,The Insolvency Service,27/01/2017,Travel and Subsistence,OFFICIAL RECEIVER SERVICES                                                                          ,Staff Payment,BA0000302536,36.50,,
BEIS,The Insolvency Service,27/01/2017,Travel and Subsistence,PEOPLE & CAPABILITY                                                                                 ,Staff Payment,BA0000302536,60.30,,
BEIS,The Insolvency Service,27/01/2017,Travel and Subsistence,PEOPLE & CAPABILITY                                                                                 ,Staff Payment,BA0000302536,10.00,,
BEIS,The Insolvency Service,30/01/2017,Insolvency Case Related Costs,OFFICIAL RECEIVER SERVICES                                                                          ,FRANK G. BOWEN LTD,BA0000302552,330.00,238504366,
BEIS,The Insolvency Service,30/01/2017,Insolvency Case Related Costs,OFFICIAL RECEIVER SERVICES                                                                          ,FRANK G. BOWEN LTD,BA0000302553,360.00,238504366,
BEIS,The Insolvency Service,30/01/2017,Accommodation,BUSINESS SERVICES DIRECTORATE                                                                       ,IRON MOUNTAIN (UK) LTD,BA0000302558,2.61,607937516,
BEIS,The Insolvency Service,30/01/2017,Accommodation,BUSINESS SERVICES DIRECTORATE                                                                       ,IRON MOUNTAIN (UK) LTD,BA0000302558,"1,489.48",607937516,
BEIS,The Insolvency Service,30/01/2017,Accommodation,CUSTOMER AND COMMUNICATIONS                                                                         ,IRON MOUNTAIN (UK) LTD,BA0000302558,1.26,607937516,
BEIS,The Insolvency Service,30/01/2017,Accommodation,EXTERNAL AFFAIRS                                                                                    ,IRON MOUNTAIN (UK) LTD,BA0000302558,35.55,607937516,
BEIS,The Insolvency Service,30/01/2017,Accommodation,EXTERNAL AFFAIRS                                                                                    ,IRON MOUNTAIN (UK) LTD,BA0000302558,120.97,607937516,
BEIS,The Insolvency Service,30/01/2017,Accommodation,INFORMATION TECHNOLOGY                                                                              ,IRON MOUNTAIN (UK) LTD,BA0000302558,236.67,607937516,
BEIS,The Insolvency Service,30/01/2017,Accommodation,INVESTIGATIONS & ENFORCEMENT                                                                        ,IRON MOUNTAIN (UK) LTD,BA0000302558,"2,235.70",607937516,
BEIS,The Insolvency Service,30/01/2017,Accommodation,OFFICIAL RECEIVER SERVICES                                                                          ,IRON MOUNTAIN (UK) LTD,BA0000302558,"14,359.08",607937516,
BEIS,The Insolvency Service,30/01/2017,Accommodation,PEOPLE & CAPABILITY                                                                                 ,IRON MOUNTAIN (UK) LTD,BA0000302558,65.63,607937516,
BEIS,The Insolvency Service,30/01/2017,Postage,OFFICIAL RECEIVER SERVICES                                                                          ,ROYAL MAIL GROUP LTD - RESPONSE SERVICES)                   ,BA0000302554,9.42,243170002,
BEIS,The Insolvency Service,30/01/2017,Postage,OFFICIAL RECEIVER SERVICES                                                                          ,ROYAL MAIL GROUP LTD - RESPONSE SERVICES)                   ,BA0000302554,90.58,243170002,
BEIS,The Insolvency Service,30/01/2017,Travel and Subsistence,CUSTOMER AND COMMUNICATIONS                                                                         ,Staff Payment,BA0000302562,2.60,,
BEIS,The Insolvency Service,30/01/2017,Travel and Subsistence,P&C - Talent                                                                                        ,Staff Payment,BA0000302562,12.63,,
BEIS,The Insolvency Service,30/01/2017,Travel and Subsistence,CUSTOMER AND COMMUNICATIONS                                                                         ,Staff Payment,BA0000302562,71.06,,
BEIS,The Insolvency Service,30/01/2017,Travel and Subsistence,CUSTOMER AND COMMUNICATIONS                                                                         ,Staff Payment,BA0000302562,150.30,,
BEIS,The Insolvency Service,30/01/2017,Travel and Subsistence,CUSTOMER AND COMMUNICATIONS                                                                         ,Staff Payment,BA0000302562,34.19,,
BEIS,The Insolvency Service,30/01/2017,Travel and Subsistence,INVESTIGATIONS & ENFORCEMENT                                                                        ,Staff Payment,BA0000302562,2.40,,
BEIS,The Insolvency Service,30/01/2017,Travel and Subsistence,INVESTIGATIONS & ENFORCEMENT                                                                        ,Staff Payment,BA0000302562,20.00,,
BEIS,The Insolvency Service,30/01/2017,Travel and Subsistence,OFFICIAL RECEIVER SERVICES                                                                          ,Staff Payment,BA0000302562,4.00,,
BEIS,The Insolvency Service,30/01/2017,Travel and Subsistence,OFFICIAL RECEIVER SERVICES                                                                          ,Staff Payment,BA0000302562,6.00,,
BEIS,The Insolvency Service,30/01/2017,Travel and Subsistence,INVESTIGATIONS & ENFORCEMENT                                                                        ,Staff Payment,BA0000302562,12.00,,
BEIS,The Insolvency Service,30/01/2017,Travel and Subsistence,INVESTIGATIONS & ENFORCEMENT                                                                        ,Staff Payment,BA0000302562,1.60,,
BEIS,The Insolvency Service,30/01/2017,Travel and Subsistence,INVESTIGATIONS & ENFORCEMENT                                                                        ,Staff Payment,BA0000302562,117.75,,
BEIS,The Insolvency Service,30/01/2017,Travel and Subsistence,INVESTIGATIONS & ENFORCEMENT                                                                        ,Staff Payment,BA0000302562,30.50,,
BEIS,The Insolvency Service,30/01/2017,Travel and Subsistence,INVESTIGATIONS & ENFORCEMENT                                                                        ,Staff Payment,BA0000302562,9.50,,
BEIS,The Insolvency Service,30/01/2017,Travel and Subsistence,INVESTIGATIONS & ENFORCEMENT                                                                        ,Staff Payment,BA0000302562,366.13,,
BEIS,The Insolvency Service,30/01/2017,Travel and Subsistence,OFFICIAL RECEIVER SERVICES                                                                          ,Staff Payment,BA0000302562,3.00,,
BEIS,The Insolvency Service,30/01/2017,Travel and Subsistence,OFFICIAL RECEIVER SERVICES                                                                          ,Staff Payment,BA0000302562,38.25,,
BEIS,The Insolvency Service,30/01/2017,Travel and Subsistence,OFFICIAL RECEIVER SERVICES                                                                          ,Staff Payment,BA0000302562,37.80,,
BEIS,The Insolvency Service,30/01/2017,Travel and Subsistence,OFFICIAL RECEIVER SERVICES                                                                          ,Staff Payment,BA0000302562,13.50,,
BEIS,The Insolvency Service,30/01/2017,Travel and Subsistence,OFFICIAL RECEIVER SERVICES                                                                          ,Staff Payment,BA0000302562,19.80,,
BEIS,The Insolvency Service,30/01/2017,Travel and Subsistence,PEOPLE & CAPABILITY                                                                                 ,Staff Payment,BA0000302562,25.65,,
